Cogmind - Beta 17.1 @@@ ROGUE MODE // 2026.09.06 @ 05:47:17 Player: FL-IST Result: Defending 0bPrime! Performance ------------- Evolutions (8) 4000 Regions Visited (28) 5600 Robots Destroyed (390) 1950 Value Destroyed (17712) 17712 Prototype IDs (126) 2520 Alien Tech Used (4) 800 Bonus (25102) 25102 TOTAL SCORE: 57684 Bonus ------- High Alert Combat Kills 10155 Follower Combat Kills 235 Registered with UFD 300 Met Optimus in HQ 500 Met Data Miner 300 Met Zhirov 300 Met Warlord at Base 500 MAIN.C Attacked Warlord 500 Met Optimus at Protoforge 1000 Executed Drillbomb Mission 10000 Win 3000 Friendly Fire -1688 Cogmind --------- Core Integrity 22/1450 Matter 290/300 Energy 170/170 System Corruption 14% Temperature Cool (0) Movement Flying (37) Location 0bPrime Parts ------- > --- POWER (2) -------- Light Antimatter Reactor > --- PROPULSION (8) --- Xenon Bombardment Thruster Impulse Thruster Array Impulse Thruster Array > --- UTILITY (11) ----- 0bPrime Scrap Suit Spectral Analyzer Experimental Signal Interpreter Experimental Targeting Computer Experimental Targeting Computer Experimental Core Analyzer Experimental Core Analyzer Experimental Core Analyzer Centrium Light Armor Plating > --- WEAPON (3) ------- Experimental Terror Saw > --- INVENTORY (5) ---- Experimental Heat Sink Experimental Targeting Computer Advanced Kinecellerator Experimental Cloaking Device Centrium Light Armor Plating Peak State ------------ > --- POWER ------------ Light Quantum Reactor Light Quantum Reactor > --- PROPULSION ------- Enhanced Biometal Leg Heavy Shield Leg Heavy Shield Leg Experimental VSS Leg Experimental VSS Leg Experimental VSS Leg > --- UTILITY ---------- Spectral Analyzer Long-range Sensor Array Experimental Signal Interpreter Experimental Core Analyzer Experimental Core Analyzer Experimental Core Analyzer Experimental Kinecellerator Experimental Reaction Control System Experimental Cloaking Device Centrium Light Armor Plating Centrium Medium Armor Plating > --- WEAPON ----------- Concept XC Strikerail Concept XC Strikerail Concept XC Strikerail > --- INVENTORY -------- Experimental Heat Sink Advanced Sensor Array Compact Linear Accelerator Concept Rapid Grenade Launcher Concept Rapid Grenade Launcher [Rating: 238] Favorites ----------- Power Light Fission Core Engine Light Ion Engine Power Core Light Fission Core Reactor Light Quantum Reactor Propulsion Light Treads Treads Light Treads Leg Experimental VSS Leg Hover Unit Improved Antigrav System Flight Unit Nuclear Pulse Thruster Utility Large Storage Unit Device Seismic Detector Storage Large Storage Unit Processor Experimental Core Analyzer Hackware Hacking Suite Protection Light Armor Plating Weapon Ion Cannon Energy Gun Vortex Rail Energy Cannon Ion Cannon Ballistic Gun Concept XC Strikerail Ballistic Cannon Bore Cannon Launcher Rocket Launcher Special Weapon RU-N14's Throwing Claymores v3 Slashing Weapon Power Sword Piercing Weapon Makeshift Spear Build | -11 -10 -10 -9 -9 -8 -8 -8 -8 -6 -6 -6 -6 -5 -5 -5 -5 -5 -4 -4 -4 -4 -4 -3 -3 -3 -2 -2 -2 ------- Run | Yrd Mat Min Mat Min Mat Sto Rec Scr Fac Low Low Dat Pro Fac Upp Upp War Pro Fac Upp Upp Zhi Pro Res Qua Res Tes Frg Slots Evolved 16 | . . . 2 . 2 . . . 4 . . . . 2 . . . . 2 . . . . 2 . 2 . . Power 1 | . . . . . . . . . . . . . . . . . . . 1 . . . . . . . . . Propulsion 6 | . . . 1 . 1 . . . 2 . . . . . . . . . . . . . . 1 . 1 . . Utility 9 | . . . 1 . 1 . . . 2 . . . . 2 . . . . 1 . . . . 1 . 1 . . Weapon . | . . . . . . . . . . . . . . . . . . . . . . . . . . . . . Parts Attached 210 | 8 7 2 17 5 18 8 1 1 16 . . . . 7 1 1 6 . 6 2 1 6 1 1 2 12 5 76 Power 24 | 2 . 1 2 1 1 . . 1 1 . . . . . . . . . 1 1 . 2 . . 1 3 1 6 Engine 9 | 2 . 1 2 1 . . . 1 . . . . . . . . . . . . . 1 . . . 1 . . Core 4 | . . . . . 1 . . . 1 . . . . . . . . . . 1 . . . . 1 . . . Reactor 11 | . . . . . . . . . . . . . . . . . . . 1 . . 1 . . . 2 1 6 Propulsion 71 | 2 2 . 7 1 10 2 1 . 5 . . . . 3 . . 1 . 2 . 1 . . . . 1 3 30 Treads 32 | 2 2 . 6 1 10 2 1 . . . . . . . . . . . . . . . . . . . . 8 Leg 12 | . . . . . . . . . . . . . . . . . . . . . . . . . . . . 12 Wheel . | . . . . . . . . . . . . . . . . . . . . . . . . . . . . . Hover 1 | . . . . . . . . . . . . . . . . . . . . . . . . . . . . 1 Flight 26 | . . . 1 . . . . . 5 . . . . 3 . . 1 . 2 . 1 . . . . 1 3 9 Utility 75 | 2 3 . 5 1 4 1 . . 10 . . . . 4 . . 2 . 3 . . 4 1 1 . 7 1 26 Device 31 | 1 . . 3 1 1 . . . 5 . . . . 2 . . 1 . 2 . . 1 1 . . 4 1 8 Storage 3 | 1 2 . . . . . . . . . . . . . . . . . . . . . . . . . . . Processor 14 | . . . . . . . . . 3 . . . . . . . 1 . . . . . . 1 . . . 9 Hackware 7 | . . . . . . . . . 2 . . . . 1 . . . . 1 . . 2 . . . 1 . . Protection 20 | . 1 . 2 . 3 1 . . . . . . . 1 . . . . . . . 1 . . . 2 . 9 Artifact . | . . . . . . . . . . . . . . . . . . . . . . . . . . . . . Weapon 40 | 2 2 1 3 2 3 5 . . . . . . . . 1 1 3 . . 1 . . . . 1 1 . 14 Energy Gun 3 | . . . 1 . 1 . . . . . . . . . . . 1 . . . . . . . . . . . Energy Cannon 11 | . 1 . 2 1 1 3 . . . . . . . . . . . . . . . . . . 1 . . 2 Ballistic Gun 10 | 2 . . . . 1 . . . . . . . . . . 1 . . . . . . . . . . . 6 Ballistic Cannon 5 | . 1 1 . . . . . . . . . . . . . . . . . . . . . . . . . 3 Launcher 5 | . . . . 1 . 1 . . . . . . . . . . . . . . . . . . . 1 . 2 Special Weapon 2 | . . . . . . . . . . . . . . . . . 2 . . . . . . . . . . . Impact Weapon . | . . . . . . . . . . . . . . . . . . . . . . . . . . . . . Slashing Weapon 3 | . . . . . . 1 . . . . . . . . 1 . . . . . . . . . . . . 1 Piercing Weapon 1 | . . . . . . . . . . . . . . . . . . . . 1 . . . . . . . . Special Melee Weapon . | . . . . . . . . . . . . . . . . . . . . . . . . . . . . . Unidentified Prototypes 40 | . . . 2 . 1 3 . . 1 . . . . 1 . . 5 . 2 1 . 4 . . 1 6 3 10 Corrupted Parts 1 | . . . . . . . . . . . . . . . . . . . . . . . . . . . . 1 System Corruption 1 | . . . . . . . . . . . . . . . . . . . . . . . . . . . . 1 Parts Lost 54 | . . . 3 2 3 1 . . . . . . 1 1 1 . . . 1 . 1 . . . . 3 . 37 Power 9 | . . . 1 . 1 . . . . . . . . . . . . . . . . . . . . 2 . 5 Propulsion 20 | . . . . . 1 1 . . . . . . 1 . . . . . 1 . 1 . . . . . . 15 Utility 17 | . . . 2 1 1 . . . . . . . . 1 . . . . . . . . . . . 1 . 11 Weapon 8 | . . . . 1 . . . . . . . . . . 1 . . . . . . . . . . . . 6 Highest Loss Streak 12 | . . . 2 2 2 1 . . . . . . 1 1 1 . . . 1 . 1 . . . . 1 . 12 To Critical Strikes 1 | . . . . . . . . . . . . . . . . . . . . . . . . . . . . 1 Average Backups 9 | 1 9 14 14 14 14 15 15 14 5 5 5 5 5 4 5 5 5 5 4 5 5 4 5 4 4 4 4 4 Power . | . 1 1 . . . . . . . . . . . . 1 1 . . . . . . . . . . . . Propulsion 1 | . 1 3 2 3 3 3 3 4 . . . . . . 1 1 1 1 . 2 2 2 2 1 . . . . Utility 4 | . 3 4 7 6 6 7 7 8 4 5 5 5 5 4 3 3 3 4 3 2 2 2 2 2 2 1 1 3 Weapon 2 | . 3 6 4 4 5 5 5 2 . . . . . . . . . . . . . . . . . 1 1 . Tool/Special . | . . . . . . . . . . . . . . . . . . . . . . . . . . . . . Unused Backups 26 | . 1 . 7 . . . . 3 1 1 1 . . 1 . 1 1 . 1 1 1 . . . . 1 1 4 Power 2 | . . . . . . . . . . . . . . . . . 1 . . 1 . . . . . . . . Propulsion 2 | . . . 1 . . . . 1 . . . . . . . . . . . . . . . . . . . . Utility 13 | . . . 1 . . . . . 1 1 1 . . 1 . 1 . . 1 . 1 . . . . . 1 4 Weapon 9 | . 1 . 5 . . . . 2 . . . . . . . . . . . . . . . . . 1 . . Tool/Special . | . . . . . . . . . . . . . . . . . . . . . . . . . . . . . Average Slot Usage (%) 90 | . 99 100 99 99 96 97 100 97 89 100 100 93 93 91 93 88 92 94 88 83 80 76 85 85 86 84 86 72 Engine 4 | . 14 14 10 11 4 . . 7 5 . . . . . . . . . . . . 1 5 4 . . . . Core 2 | . . . . . 4 9 9 1 . 6 6 6 6 5 5 5 5 5 5 8 5 5 5 4 7 6 . . Reactor 1 | . . . . . . . . . . . . . . . . . . . . . . . . . . 1 8 5 Treads 18 | . 27 28 32 33 34 33 36 31 . . . . . . . . . . . . . . . . . . . 1 Leg 1 | . . . . . . . . . . . . . . . . . . . . . . . . . . . . 7 Flight 8 | . . . . . . . . 4 33 40 40 40 33 29 29 29 29 29 25 20 20 20 20 22 22 23 24 8 Device 12 | . 8 . 10 13 16 18 18 15 9 13 13 13 13 14 11 11 13 11 15 15 15 15 15 17 18 19 20 10 Storage 5 | . 14 14 11 11 9 9 9 9 . . . . . . . . . . . . . . . . . . . . Processor 6 | . . . . . . . . . 12 13 13 13 13 11 11 11 11 11 10 10 10 10 10 9 9 8 8 22 Hackware 3 | . . . . . . . . . 12 13 13 13 13 17 17 17 17 17 15 15 15 15 15 13 13 12 12 1 Protection 7 | . 4 14 10 8 8 9 9 9 3 . . . . . 5 5 2 5 5 5 5 4 5 4 4 3 4 5 Energy Cannon 9 | . 1 14 21 21 17 17 18 18 . . . . . . . . . . . . . . . . . . . . Ballistic Gun 2 | . 23 2 . . . . . . . . . . . . . . 1 . . . . . . . . . . 3 Ballistic Cannon 1 | . 3 11 . . . . . . . . . . . . . . . . . . . . . . . . . 1 Slashing Weapon 1 | . . . . . . . . . 5 6 6 6 6 5 5 5 5 5 5 5 5 5 5 4 4 3 4 . Peak Build Rating 238 | 7 8 12 24 21 37 38 32 32 60 60 60 60 60 85 83 89 95 91 103 103 103 105 106 124 129 168 180 238 Average Rating 69 | 5 7 11 18 19 27 35 29 30 51 59 60 58 56 71 82 82 90 91 96 101 98 91 105 121 125 147 172 164 On Entrance 70 | . 7 8 12 20 21 37 32 29 28 60 60 60 60 56 81 81 89 91 91 98 103 98 105 106 124 129 168 178 Avg Prop Armor Cover (%) 4 | . . . 6 . . . . . . . . . . . . . . . . . . . . . . 1 . 5 Naked Turns . | . . . . . . . . . . . . . . . . . . . . . . . . . . . . . Heaviest Build 87 | 14 33 38 43 43 49 42 38 42 41 15 15 15 15 27 28 30 34 34 39 46 46 44 44 41 43 55 61 87 Greatest Support 228 | 40 40 40 69 63 112 112 96 88 60 32 32 32 32 41 41 41 41 41 41 40 40 40 40 53 53 62 63 228 Greatest Overweight (x) 7 | . 1 . 1 . 1 . . . . . . . . . . . . . 1 1 1 1 1 . . 1 1 7 Average Overweight (x) . | . . . . . . . . . . . . . . . . . . . . . . . . . . . . . Largest Inventory Capacity 15 | 8 15 15 15 15 15 15 15 15 15 5 5 5 5 5 5 5 5 5 5 5 5 5 5 5 5 5 5 5 Average Capacity 10 | 7 14 15 15 15 15 15 15 15 5 5 5 5 5 5 5 5 5 5 5 5 5 5 5 5 5 5 5 5 Most Carried 15 | 3 14 15 15 15 15 15 15 15 14 5 5 5 5 5 5 5 5 5 5 5 5 5 5 4 5 5 5 5 Average Carried 9 | 1 9 14 14 14 14 15 15 14 5 4 5 5 5 4 5 5 5 5 4 4 5 4 5 3 4 4 4 4 Final Capacity 15 | 8 15 15 15 15 15 15 15 15 5 5 5 5 5 5 5 5 5 5 5 5 5 5 5 5 5 5 5 5 Final Carried 15 | 3 12 15 15 15 15 15 15 14 5 5 5 5 5 5 5 5 5 5 5 5 5 5 5 4 5 5 4 5 Scrap Suit Usage (%) 3 | . . . . . . . . . . . . . . . . . . . . . . . . . . . . 17 Parts Cannibalized 13 | . . . . . . . . . . . . . . . . . . . . . . . . . . . . 13 Class Distribution -------------------- 35% | Scavenger-Mutant 27% | Mutant 13% | Hacker-Ninja 9% | Hacker-Scout 8% | Scavenger-Gunner 3% | Hacker-Assassin Dominant Class ---------------- Mutant | -10/Materials Mutant | -10/Mines Mutant | -9/Materials Scavenger-Mutant | -9/Mines Scavenger-Mutant | -8/Materials Mutant | -8/Storage Scavenger-Mutant | -8/Recycling Scavenger-Mutant | -8/Scraptown Hacker-Scout | -6/Factory Hacker-Scout | -6/Lower Caves Hacker-Scout | -6/Lower Caves Hacker-Scout | -6/Data Miner Hacker-Scout | -5/Proximity Caves Hacker-Scout | -5/Factory Hacker-Scout | -5/Upper Caves Hacker-Scout | -5/Upper Caves Hacker-Ninja | -5/Warlord Hacker-Scout | -4/Proximity Caves Hacker-Ninja | -4/Factory Hacker-Assassin | -4/Upper Caves Hacker-Ninja | -4/Upper Caves Hacker-Ninja | -4/Zhirov Hacker-Assassin | -3/Proximity Caves Hacker-Ninja | -3/Research Hacker-Ninja | -3/Quarantine Hacker-Ninja | -2/Research Hacker-Ninja | -2/Testing Scavenger-Gunner | -2/Protoforge Resources | -11 -10 -10 -9 -9 -8 -8 -8 -8 -6 -6 -6 -6 -5 -5 -5 -5 -5 -4 -4 -4 -4 -4 -3 -3 -3 -2 -2 -2 ----------- Run | Yrd Mat Min Mat Min Mat Sto Rec Scr Fac Low Low Dat Pro Fac Upp Upp War Pro Fac Upp Upp Zhi Pro Res Qua Res Tes Frg Matter Collected 7970 | 248 633 148 447 71 327 150 30 48 196 . 5 . 16 61 68 6 49 61 20 118 . 116 62 . 90 470 123 4407 Remotely . | . . . . . . . . . . . . . . . . . . . . . . . . . . . . . Salvage Created 15373 | 143 1000 238 1751 168 1544 1222 221 . 289 213 . . . 246 87 91 . 28 142 76 . 304 38 . 233 837 277 6225 Parts 732 | 12 58 17 92 11 73 64 11 . 22 2 . . . 18 5 3 . 1 7 5 3 7 2 . 15 46 21 237 Haulers Intercepted 22 | . 2 . 6 . 3 6 . . . . . . . . . . . . 1 . . . . . . 4 . . Recyclers Shooed 4 | . . 1 . . . 2 . . . . . . . . . . . . . . . . . . . . 1 . Parts Field Recycled . | . . . . . . . . . . . . . . . . . . . . . . . . . . . . . Retrieved Matter . | . . . . . . . . . . . . . . . . . . . . . . . . . . . . . Parts Self-Destructed 13 | . . . . . . . . . . 1 . . . . 5 . . . . . 1 4 2 . . . . . Prevented 4 | . . . . . . . . . . . . . . . . 1 . 3 . . . . . . . . . . Parts Restored . | . . . . . . . . . . . . . . . . . . . . . . . . . . . . . Kills | -11 -10 -10 -9 -9 -8 -8 -8 -8 -6 -6 -6 -6 -5 -5 -5 -5 -5 -4 -4 -4 -4 -4 -3 -3 -3 -2 -2 -2 ------- Run | Yrd Mat Min Mat Min Mat Sto Rec Scr Fac Low Low Dat Pro Fac Upp Upp War Pro Fac Upp Upp Zhi Pro Res Qua Res Tes Frg Combat Hostiles Destroyed 271 | . 17 7 27 6 21 17 4 . . . . . 1 1 . . . . . . 4 . 1 . . 10 . 155 Guns 54 | . 12 . . . 6 . . . . . . . . . . . . . . . . . . . . . . 36 Cannons 97 | . 5 7 26 2 15 15 4 . . . . . . . . . . . . . . . 1 . . . . 22 AOE 117 | . . . . 4 . . . . . . . . 1 1 . . . . . . 4 . . . . 10 . 97 Classes Destroyed 28 | 3 6 . 4 . . . . . . . . . 1 . 1 1 . 1 . 1 . . 1 . . . . 9 Worker 25 | 2 2 . 4 . . 1 . . 4 . . . . 1 . . . . . . . . . . . 9 1 1 Builder 7 | . 1 . 2 . . . . . 2 . . . . . . . . . . . . . . . . 1 1 . Tunneler 10 | 2 1 2 . 1 1 . . . . . . . . 1 . . . . 1 . . . . . . 1 . . Hauler 22 | . 2 . 6 . 3 6 . . . . . . . . . . . . 1 . . . . . . 4 . . Recycler 13 | 1 3 1 1 . 2 1 . . 1 . . . . 1 . . . . . . . . . . 1 . 1 . Carrier 1 | . . . . . . . . . . . . . . . . . . . . . . . . . . . . 1 Minesweeper 1 | . . . . . . . . . . . . . . . 1 . . . . . . . . . . . . . Mechanic 8 | . . . 1 . 1 1 . . . . . . . . . . . . . . . . . . . . . 5 Operator 9 | . 1 . 1 . 1 1 . . 1 . . . . 1 . . . . . . . . . . 1 . 1 1 Drone 8 | . . . . . . . . . . . . . 1 . . . . . . . . . . . . . . 7 Watcher 16 | . 1 . 4 . 3 1 . . . . . . . 2 . . . . 1 . . . . . . 2 . 2 Swarmer 56 | . 5 5 3 4 . 3 . . . . . . . 1 . . . . . . 4 . . . . 9 . 22 Saboteur 6 | . . . . . . . . . . . . . . . . . . . . . . . . . . . . 6 Grunt 69 | . 12 2 12 . 12 6 . . . . . . . . . . . . . . . . . . . . . 25 Brawler 5 | . . . 1 . . . . . . . . . . . . . . . . . . . . . . . . 4 Duelist 6 | . . . 1 . 1 . . . . . . . . . . . . . . . . . . . . . . 4 Protector 5 | . . . . . . . . . . . . . . . . . . . . . . . . . . . . 5 Researcher 3 | . . . . . . . . . . . . . . . . . . . . 1 . . . . 2 . . . Sentry 32 | . . . 10 2 8 8 4 . . . . . . . . . . . . . . . . . . . . . Specialist 3 | . . . . . . . . . . . . . . . . . . . . . . . . . . . . 3 Hunter 17 | . . . . . . . . . . . . . . . . . . . . . . . . . . . . 17 Programmer 23 | . . . . . . . . . . . . . . . . . . . . . . . 1 . . 1 . 21 Hotshot 3 | . . . . . . . . . . . . . . . . . . . . . . . . . . . . 3 Striker 19 | . . . . . . . . . . . . . . . . . . . . . . . . . . . . 19 Executioner 18 | . . . . . . . . . . . . . . . . . . . . . . . . . . . . 18 Elite 3 | . . . . . . . . . . . . . . . . . . . . . . . . . . . . 3 Scraphulk 2 | . . . . . . . . . . . . . . . . . . . . . . . . . . . . 2 Decomposer 1 | . . . . . . . . . . . . . . . . . . . . 1 . . . . . . . . Packrat 1 | . . . . . . . . . . 1 . . . . . . . . . . . . . . . . . . Samaritan 2 | . . . . . . . . . . . . . . . . 2 . . . . . . . . . . . . Tinkerer 1 | . . . . . . . . . . . . . . . . . . 1 . . . . . . . . . . Best Kill Streak 20 | 3 4 3 6 4 5 5 1 . 3 . . . 1 5 1 . . . 1 . 4 . 1 . 2 6 1 20 Combat Bots Only 19 | . 3 2 3 4 3 4 1 . . . . . 1 1 . . . . . . 4 . 1 . . 4 . 19 Max Kills in Single Turn 11 | 2 1 1 2 4 2 1 1 . 1 1 . . 1 1 1 1 . 1 1 1 4 . 1 . 1 4 1 11 Gunslinging . | . . . . . . . . . . . . . . . . . . . . . . . . . . . . . Exploded 8 | . . . . 4 . . . . . . . . 1 1 . . . . . . 4 . . . . 4 . 8 Melee . | . . . . . . . . . . . . . . . . . . . . . . . . . . . . . Uniques/NPCs Destroyed . | . . . . . . . . . . . . . . . . . . . . . . . . . . . . . Combat | -11 -10 -10 -9 -9 -8 -8 -8 -8 -6 -6 -6 -6 -5 -5 -5 -5 -5 -4 -4 -4 -4 -4 -3 -3 -3 -2 -2 -2 -------- Run | Yrd Mat Min Mat Min Mat Sto Rec Scr Fac Low Low Dat Pro Fac Upp Upp War Pro Fac Upp Upp Zhi Pro Res Qua Res Tes Frg Hostile Shots Fired 1054 | . 92 31 115 30 131 61 8 . 6 . . . 4 6 1 . 8 . 2 . 5 . 2 2 . 62 3 485 Missed 351 | . 26 7 27 6 28 17 . . 3 . . . 3 2 1 . 4 . 1 . 2 . . . . 42 2 180 Deflected 9 | . . . . . . . . . . . . . . . . . . . . . . . . . . . . 9 Hits 703 | . 66 24 88 24 103 44 8 . 3 . . . 1 4 . . 4 . 1 . 3 . 2 2 . 20 1 305 Melee 33 | . . . 4 . 2 . . . . . . . . . . . . . . . . . . . . . . 27 Projectile 670 | . 66 24 84 24 101 44 8 . 3 . . . 1 4 . . 4 . 1 . 3 . 2 2 . 20 1 278 Critical Strikes 35 | . 1 . 3 1 5 2 1 . . . . . . . . . 1 . . . . . 1 . . . . 20 Part Disruptions 5 | . . . . . . . . . . . . . . . . . . . . . . . . . . . . 5 Damage Taken 15929 | . 671 197 1107 327 1494 822 124 . 44 . 24 . 22 58 26 . 71 . 23 . 51 . 47 40 . 624 42 10115 Core 1850 | . 143 24 191 26 164 63 . . . . . . . . . . 18 . . . . . . . . . . 1221 Absorbed by Shields 41 | . . . . . . . . . . . . . . . . . . . . . . . . . . . . 41 Redirected to Shielding 132 | . . . . . . . . . . . . . . . . . . . . . . . . . . . . 132 Ignored by Resistances 3 | . . . . . . . . . . . . . . . . . . . . . . . . . . . . 3 Regen/Repaired (Parts) 482 | . 75 . 146 . 45 93 . . . . . . . . . . 1 . . . . . . . . . . 122 Core Remaining (%) 69 | 100 . 33 . 45 . . . 58 . . . . 100 . . . . 98 . . . . 100 . 94 . . 1 Volleys Fired 676 | 20 92 24 107 9 89 74 11 . . . . . 1 3 1 . 7 . . . 1 . 2 . 3 13 2 217 Largest 3 | 2 2 2 2 2 2 2 2 . . . . . 1 1 1 . 1 . . . 1 . 1 . 1 1 1 3 Hottest 184 | 40 80 108 120 120 120 158 158 . . . . . 33 33 33 . 45 . . . . . . . 81 55 55 184 Shots Fired 1312 | 40 184 47 209 17 175 147 24 . . . 1 . 1 3 1 . 7 . . . 1 . 2 . 3 13 2 435 Gun 464 | 40 168 9 . . 22 . . . . . . . . . . . 7 . . . . . . . . . . 218 Cannon 778 | . 16 38 209 16 153 147 24 . . . . . . . . . . . . . . . . . 3 . . 172 Launcher 67 | . . . . 1 . . . . . . 1 . 1 3 1 . . . . . . . . . . 13 2 45 Special 3 | . . . . . . . . . . . . . . . . . . . . . 1 . 2 . . . . . Kinetic 677 | 40 179 23 25 . 22 . . . . . . . . . . . . . . . . . . . . . . 388 Thermal 555 | . 5 24 184 16 153 147 24 . . . . . . . . . . . . . . . . . . . . 2 Explosive 70 | . . . . 1 . . . . . . 1 . 1 3 1 . . . . . 1 . 2 . . 13 2 45 Electromagnetic 3 | . . . . . . . . . . . . . . . . . . . . . . . . . 3 . . . Entropic 7 | . . . . . . . . . . . . . . . . . 7 . . . . . . . . . . . Robot Hit Streak 22 | 5 14 6 15 4 13 10 6 . . . . . 5 1 . . . . . . . . 2 . . 3 5 22 Robot Miss Streak 8 | 3 8 5 5 1 4 3 1 . . . . . . 2 . . . . . . 1 . . . . . . 7 Penetration Max 2 | . . 1 1 . . . . . . . . . . . . . . . . . . . . . . . . 2 Secondary Targets 10 | . 3 . . . . . . . . . . . . . . . . . . . . . . . . . . 7 Max Gunslinging Chain 1 | . 1 . . . . . . . . . . . . . . . . . . . . . . . . . . 1 Shots Hit Robots 883 | 22 106 25 129 9 108 79 15 . 11 4 . . 1 10 2 4 . 1 4 2 . 10 2 1 4 27 21 286 Core Hits 720 | 7 46 10 47 7 47 31 4 . 6 . . . 1 7 2 . . 1 3 1 4 3 2 . 4 25 5 457 Critical Kills 16 | . . 2 3 . 1 2 . . . . . . . . . . . . . . . . . . . . . 8 Critical Parts Destroyed 23 | 1 2 2 3 . . . . . . . . . . . . . . . . . . . . . . . . 15 Critical Strikes 60 | 1 3 4 6 . 1 2 . . . . . . . . . . . . . . . . . . . 2 1 40 Meltdown 4 | . . . 1 . 1 2 . . . . . . . . . . . . . . . . . . . . . . Destroy 36 | 1 2 4 5 . . . . . . . . . . . . . . . . . . . . . . . . 24 Blast 17 | . 1 . . . . . . . . . . . . . . . . . . . . . . . . . . 16 Sever 3 | . . . . . . . . . . . . . . . . . . . . . . . . . . 2 1 . Melee Attacks 228 | . . . . . . 1 . . 34 6 1 . 1 17 10 5 . 1 12 4 1 10 2 6 10 58 22 27 Impact . | . . . . . . . . . . . . . . . . . . . . . . . . . . . . . Slashing 228 | . . . . . . 1 . . 34 6 1 . 1 17 10 5 . 1 12 4 1 10 2 6 10 58 22 27 Piercing . | . . . . . . . . . . . . . . . . . . . . . . . . . . . . . Sneak Attacks 47 | . . . . . . . . . 7 1 . . . 4 1 4 . 1 2 2 . . . . 3 16 4 2 Combat Hostiles . | . . . . . . . . . . . . . . . . . . . . . . . . . . . . . Follow-up Attacks . | . . . . . . . . . . . . . . . . . . . . . . . . . . . . . Damage Inflicted 61949 | 235 1209 470 3209 404 2396 1929 358 . 651 274 . . 56 582 176 318 . 102 273 159 553 800 187 60 335 3968 1841 41404 Guns 9278 | 235 1063 52 . . 281 . . . . . . . . . . . . . . . . . . . . . . 7647 Cannons 13096 | . 146 418 3120 226 2102 1929 345 . . . . . . . . . . . . . . . . . . . . 4810 Explosions 31912 | . . . 89 178 . . . . . . . . 56 106 . . . . . . 553 . 95 . . 2032 118 28685 Melee 7545 | . . . . . . . . . 651 274 . . . 476 176 318 . 102 273 159 . 800 . 60 335 1936 1723 262 Ramming 26 | . . . . . 13 . 13 . . . . . . . . . . . . . . . . . . . . . Kinetic 14670 | 235 1135 197 365 . 281 . . . . . . . . . . . . . . . . . . . . . . 12457 Thermal 7704 | . 74 273 2755 226 2102 1929 345 . . . . . . . . . . . . . . . . . . . . . Explosive 31823 | . . . . 178 . . . . . . . . 56 106 . . . . . . 553 . 95 . . 2032 118 28685 Electromagnetic 89 | . . . 89 . . . . . . . . . . . . . . . . . . . . . . . . . Impact . | . . . . . . . . . . . . . . . . . . . . . . . . . . . . . Slashing 7637 | . . . . . . . . . 651 274 . . . 476 176 318 . 102 273 159 . 800 92 60 335 1936 1723 262 Piercing . | . . . . . . . . . . . . . . . . . . . . . . . . . . . . . Highest Corruption 14 | . . . 1 1 2 5 5 . 1 1 1 1 1 . . . . . 5 5 5 5 6 . . 1 1 14 Average Corruption 4 | . . . 1 1 2 3 5 . 1 1 1 1 1 . . . . . 5 5 5 5 5 . . 1 1 7 Corruption Purged . | . . . . . . . . . . . . . . . . . . . . . . . . . . . . . Corruption Blocked . | . . . . . . . . . . . . . . . . . . . . . . . . . . . . . Effects 233 | . . . 1 . 5 23 27 . 2 1 6 . 1 . . . . . . 9 12 . 11 . . 4 1 130 Message Errors 51 | . . . . . 2 5 7 . . . 1 . 1 . . . . . . 2 2 . 2 . . 1 . 28 Matter Fused 56 | . . . . . 2 5 7 . 1 . 1 . . . . . . . . 3 3 . 3 . . 1 1 29 Heat Flow Errors 29 | . . . . . . 3 2 . . 1 2 . . . . . . . . 1 4 . 2 . . . . 14 Energy Discharges 36 | . . . 1 . . 2 5 . 1 . 1 . . . . . . . . 2 1 . 1 . . . . 22 Parts Rejected 3 | . . . . . . . . . . . . . . . . . . . . . . . . . . . . 3 Parts Fused 5 | . . . . . . 1 . . . . . . . . . . . . . . . . 1 . . 1 . 2 Data Loss (minor) 22 | . . . . . . 4 3 . . . . . . . . . . . . 1 2 . . . . 1 . 11 Data Loss (major) 10 | . . . . . . 1 . . . . . . . . . . . . . . . . 2 . . . . 7 Misfires 4 | . . . . . 1 . 2 . . . 1 . . . . . . . . . . . . . . . . . Alerts 9 | . . . . . . 2 1 . . . . . . . . . . . . . . . . . . . . 6 Misdirections 1 | . . . . . . . . . . . . . . . . . . . . . . . . . . . . 1 Weapon Failures 7 | . . . . . . . . . . . . . . . . . . . . . . . . . . . . 7 Overload Shots . | . . . . . . . . . . . . . . . . . . . . . . . . . . . . . Overflow Damage 2530 | . . . 86 . 11 33 . . 130 188 . . . 76 12 174 . . . 62 . 192 . 30 . 572 147 817 Projectiles 310 | . . . 86 . 11 33 . . . . . . . . . . . . . . . . . . . . . 180 Explosions 846 | . . . . . . . . . . . . . . . 12 . . . . . . . . . . 266 . 568 Melee 1374 | . . . . . . . . . 130 188 . . . 76 . 174 . . . 62 . 192 . 30 . 306 147 69 Knockbacks 20 | . . 1 7 . . . . . . . . . . . . . . . . . . . . . . . . 12 Impact . | . . . . . . . . . . . . . . . . . . . . . . . . . . . . . Kinetic 20 | . . 1 7 . . . . . . . . . . . . . . . . . . . . . . . . 12 Secondary . | . . . . . . . . . . . . . . . . . . . . . . . . . . . . . Self-Inflicted Damage 262 | . . . . . . . . . . . 24 . . . 26 . . . . . . . . . . . . 212 Shots 7 | . . . . . . . . . . . 1 . . . 1 . . . . . . . . . . . . 5 Rammed 2 | . . . . . 1 . 1 . . . . . . . . . . . . . . . . . . . . . Targets Rammed 2 | . . . . . 1 . 1 . . . . . . . . . . . . . . . . . . . . . Kicked . | . . . . . . . . . . . . . . . . . . . . . . . . . . . . . Crushed . | . . . . . . . . . . . . . . . . . . . . . . . . . . . . . Highest Temperature 371 | . 66 254 371 303 364 246 288 . 93 292 226 108 . . 1 . 49 . . 253 194 . 236 . . 212 132 242 Average Temperature 65 | . 16 87 100 148 59 59 74 . 29 56 46 60 . . 1 . 28 . . 121 84 . 99 . . 60 41 51 Received Heat Transfer 2217 | . 279 6 519 81 702 351 54 . . . . . . . . . 54 . . . . . . . . 9 . 162 Effects 12 | . . 2 4 . 3 3 . . . . . . . . . . . . . . . . . . . . . . Shutdowns 1 | . . . 1 . . . . . . . . . . . . . . . . . . . . . . . . . Interference 9 | . . 2 1 . 3 3 . . . . . . . . . . . . . . . . . . . . . . Short Circuit 2 | . . . 2 . . . . . . . . . . . . . . . . . . . . . . . . . Siege Activations . | . . . . . . . . . . . . . . . . . . . . . . . . . . . . . Martial Activations . | . . . . . . . . . . . . . . . . . . . . . . . . . . . . . Shielding Activations 5 | . . . . . . . . . . . . . . . . . . . . . . . . . . . . 5 Total Turns 244 | . . . . . . . . . . . . . . . . . . . . . . . . . . . . 244 Longest Duration 87 | . . . . . . . . . . . . . . . . . . . . . . . . . . . . 87 Robots Disrupted . | . . . . . . . . . . . . . . . . . . . . . . . . . . . . . Combat Hostiles . | . . . . . . . . . . . . . . . . . . . . . . . . . . . . . Robots Corrupted . | . . . . . . . . . . . . . . . . . . . . . . . . . . . . . Combat Hostiles . | . . . . . . . . . . . . . . . . . . . . . . . . . . . . . Parts Fried . | . . . . . . . . . . . . . . . . . . . . . . . . . . . . . Impact Corruptions . | . . . . . . . . . . . . . . . . . . . . . . . . . . . . . Robots Melted 5 | . . . 1 . 1 3 . . . . . . . . . . . . . . . . . . . . . . Combat Hostiles 3 | . . . 1 . . 2 . . . . . . . . . . . . . . . . . . . . . . Parts Melted 28 | . . 1 8 3 3 9 . . . . . . . . . . . . . . . . . . . . . 4 Heat Transferred 12358 | . 148 555 4366 333 3330 3108 518 . . . . . . . . . . . . . . . . . . . . . Parts Sabotaged 2 | . . . . . . . . . . . . . . . . . . . . . . . . . . . . 2 Parts Stolen . | . . . . . . . . . . . . . . . . . . . . . . . . . . . . . Parts Stripped . | . . . . . . . . . . . . . . . . . . . . . . . . . . . . . Power Chain Reactions . | . . . . . . . . . . . . . . . . . . . . . . . . . . . . . Alert | -11 -10 -10 -9 -9 -8 -8 -8 -8 -6 -6 -6 -6 -5 -5 -5 -5 -5 -4 -4 -4 -4 -4 -3 -3 -3 -2 -2 -2 ------- Run | Yrd Mat Min Mat Min Mat Sto Rec Scr Fac Low Low Dat Pro Fac Upp Upp War Pro Fac Upp Upp Zhi Pro Res Qua Res Tes Frg Maximum Alert Level 5 | . 1 . 2 1 1 2 . . . . . . . . . . . . . . . . . 1 . 2 1 5 Low Security (%) 60 | 100 80 100 74 92 93 54 100 . 100 . . . . 100 . . . . 100 . . . . . 100 51 . 7 Level 1 13 | . 19 . 20 7 6 31 . . . . . . . . . . . . . . . . . 100 . 6 100 7 Level 2 4 | . . . 4 . . 13 . . . . . . . . . . . . . . . . . . . 42 . 1 Level 3 . | . . . . . . . . . . . . . . . . . . . . . . . . . . . . 1 Level 4 1 | . . . . . . . . . . . . . . . . . . . . . . . . . . . . 6 Level 5 18 | . . . . . . . . . . . . . . . . . . . . . . . . . . . . 75 High Security . | . . . . . . . . . . . . . . . . . . . . . . . . . . . . . Max Security . | . . . . . . . . . . . . . . . . . . . . . . . . . . . . . Peak Influence 3678 | 10 299 159 449 232 257 430 171 . 25 . . . . 61 . . . . 86 . . . . 323 197 691 378 3678 Initial 378 | . . 114 . 173 . 100 150 . . . . . . 12 . . . . . . . . . 300 165 94 378 140 Average 759 | 1 99 45 150 83 69 220 91 . 6 . . . . 10 . . . . 32 . . . . 300 174 304 305 2671 Influence Increases 10982 | 25 613 304 1167 147 706 886 243 . 129 5 . . 80 132 10 . 15 . 151 . 135 15 30 355 84 1041 70 4639 Destroy 0b10 Robot/C 5440 | . 340 180 620 120 420 440 80 . . . . . . 20 . . . . . . 80 . 20 . 40 200 . 2880 Destroy 0b10 Robot/NC 655 | 25 55 15 100 5 55 60 . . 40 5 . . 5 30 10 . . . 15 . . 15 . . 10 85 25 100 Destroy Leader 1020 | . 66 40 192 10 122 136 . . . . . . . 4 . . . . 4 . 10 . 10 . . 32 . 394 Allied During Kill 162 | . . 18 10 . . 134 . . . . . . . . . . . . . . . . . . . . . . Successful Hack 154 | . 31 . 52 . 11 7 8 . 8 . . . . 8 . . . . 13 . . . . . . 13 3 . Select Force Hacks 270 | . 60 . 60 . . . 150 . . . . . . . . . . . . . . . . . . . . . Disable Machine 450 | . . 30 60 . 75 75 . . 15 . . . . 15 . . . . . . . . . . 30 . . 150 Anti-Garrison Action 200 | . . . . . . . . . . . . . . . . . . . . . . . . . . . . 200 Destroy Structure 1206 | . 1 6 28 12 23 19 5 . 21 . . . . 40 . . . . 14 . . . . 10 4 426 42 555 Advance Influence 300 | . . . . . . . . . . . . . . . . . . . . . . . . 300 . . . . Partial Spotted 120 | . . . 15 . . . . . 30 . . . . 15 . . . . . . . . . . . 45 . 15 Lose Combat Pursuer 1005 | . 60 15 30 . . 15 . . 15 . . . 75 . . . 15 . 105 . 45 . . 45 . 240 . 345 Influence Decreases 7343 | 25 318 599 721 593 467 739 629 . 127 7 . . 60 101 61 . 15 . 143 8 45 105 30 60 210 537 493 1250 Entered New Map 1563 | . . 181 . 273 . 139 236 . . 2 . . . 8 20 . . . . 4 . 90 . . 130 75 295 110 Time Decay 5149 | 25 318 403 651 318 437 530 393 . 117 5 . . 60 89 41 . 15 . 123 4 45 15 30 60 80 422 198 770 Lost Part 486 | . . . 30 2 30 10 . . . . . . . 4 . . . . 10 . . . . . . 30 . 370 Lost Ally 145 | . . 15 40 . . 60 . . 10 . . . . . . . . . 10 . . . . . . 10 . . Squads Dispatched 64 | . 4 . 6 . 3 1 . . 6 . . . . 7 . . . . 7 . . . . 1 1 13 2 13 Investigation 39 | . 3 . 5 . 2 . . . 4 . . . . 7 . . . . 5 . . . . . . 4 . 9 Extermination 11 | . . . . . . . . . 1 . . . . . . . . . 1 . . . . . 1 6 1 1 Reinforcement 12 | . 1 . 1 . 1 . . . 1 . . . . . . . . . . . . . . 1 . 3 1 3 Assault . | . . . . . . . . . . . . . . . . . . . . . . . . . . . . . Garrison 2 | . . . . . . 1 . . . . . . . . . . . . 1 . . . . . . . . . Intercept . | . . . . . . . . . . . . . . . . . . . . . . . . . . . . . Searches Triggered . | . . . . . . . . . . . . . . . . . . . . . . . . . . . . . Data Miner Redirects 1 | . . . . . . . . . . . . . . . . . . . . . . . . . . 1 . . Construction Impeded 1 | . . . . . . . . . 1 . . . . . . . . . . . . . . . . . . . Haulers Reinforced 1 | . . . . . . . . . . . . . . . . . . . . . . . . . . 1 . . Active Scanning Responses . | . . . . . . . . . . . . . . . . . . . . . . . . . . . . . Cargo Convoy Interrupts . | . . . . . . . . . . . . . . . . . . . . . . . . . . . . . Stealth | -11 -10 -10 -9 -9 -8 -8 -8 -8 -6 -6 -6 -6 -5 -5 -5 -5 -5 -4 -4 -4 -4 -4 -3 -3 -3 -2 -2 -2 --------- Run | Yrd Mat Min Mat Min Mat Sto Rec Scr Fac Low Low Dat Pro Fac Upp Upp War Pro Fac Upp Upp Zhi Pro Res Qua Res Tes Frg Distress Signals 20 | . 1 . 4 . . 4 . . . . . . . . . . . . . . . . . . . 2 . 9 Communications Jammed 15 | . . . . . . . . . . . . . . . . . . . . . . . 1 2 . 10 . 2 Distress Signals 10 | . . . . . . . . . . . . . . . . . . . . . . . . 2 . 6 . 2 Times Spotted 573 | . 32 10 46 3 36 26 2 . 4 . . . 6 6 1 . 16 . 8 . 5 . 3 5 2 43 6 313 Peak Tracking Total 18 | . 4 3 8 4 6 4 1 . 2 . . . 5 4 1 . 18 . 8 . 4 . 1 3 1 7 3 14 Tactical Retreats 45 | . 4 1 2 . . 1 . . 1 . . . 3 . . . 1 . 2 . 2 . . 2 . 8 . 18 Traps | -11 -10 -10 -9 -9 -8 -8 -8 -8 -6 -6 -6 -6 -5 -5 -5 -5 -5 -4 -4 -4 -4 -4 -3 -3 -3 -2 -2 -2 ------- Run | Yrd Mat Min Mat Min Mat Sto Rec Scr Fac Low Low Dat Pro Fac Upp Upp War Pro Fac Upp Upp Zhi Pro Res Qua Res Tes Frg Traps Triggered 19 | . 1 . 3 . 1 3 . . 1 . . . . 2 . . . . . . . . . 2 . 3 . 3 Indirectly . | . . . . . . . . . . . . . . . . . . . . . . . . . . . . . Trap Hack Attempts . | . . . . . . . . . . . . . . . . . . . . . . . . . . . . . Triggered . | . . . . . . . . . . . . . . . . . . . . . . . . . . . . . Disarmed . | . . . . . . . . . . . . . . . . . . . . . . . . . . . . . Reprogrammed . | . . . . . . . . . . . . . . . . . . . . . . . . . . . . . Reused . | . . . . . . . . . . . . . . . . . . . . . . . . . . . . . Traps Extracted . | . . . . . . . . . . . . . . . . . . . . . . . . . . . . . Installed . | . . . . . . . . . . . . . . . . . . . . . . . . . . . . . Triggered . | . . . . . . . . . . . . . . . . . . . . . . . . . . . . . Machines | -11 -10 -10 -9 -9 -8 -8 -8 -8 -6 -6 -6 -6 -5 -5 -5 -5 -5 -4 -4 -4 -4 -4 -3 -3 -3 -2 -2 -2 ---------- Run | Yrd Mat Min Mat Min Mat Sto Rec Scr Fac Low Low Dat Pro Fac Upp Upp War Pro Fac Upp Upp Zhi Pro Res Qua Res Tes Frg Machines Disabled 34 | . . 2 4 1 5 5 . . 1 . . . . 1 . . 1 . . . . . . . 2 . 1 11 Max in Single Turn 3 | . . 1 1 1 1 1 . . 1 . . . . 1 . . 1 . . . . . . . 1 . 1 3 Garrison Access 3 | . . . . . . . . . 1 . . . . . . . . . . . . . . . . . 1 1 Machines Repaired . | . . . . . . . . . . . . . . . . . . . . . . . . . . . . . Machines Dismantled . | . . . . . . . . . . . . . . . . . . . . . . . . . . . . . Machines Sabotaged . | . . . . . . . . . . . . . . . . . . . . . . . . . . . . . Overloaded Fab Kills . | . . . . . . . . . . . . . . . . . . . . . . . . . . . . . Hacking | -11 -10 -10 -9 -9 -8 -8 -8 -8 -6 -6 -6 -6 -5 -5 -5 -5 -5 -4 -4 -4 -4 -4 -3 -3 -3 -2 -2 -2 --------- Run | Yrd Mat Min Mat Min Mat Sto Rec Scr Fac Low Low Dat Pro Fac Upp Upp War Pro Fac Upp Upp Zhi Pro Res Qua Res Tes Frg Machines Accessed 122 | . 9 . 16 . 8 10 11 1 16 . . 4 . 7 . 1 2 . 6 . . 4 . 1 1 9 3 13 Terminals 55 | . 6 . 11 . 5 7 5 . 7 . . . . . . . . . 1 . . . . . 1 6 2 4 Fabricators 5 | . . . . . . . . . 1 . . . . 1 . . . . . . . . . . . . . 3 Repair Stations 10 | . 1 . 1 . 1 1 . . 4 . . . . . . . . . 1 . . . . . . . . 1 Recycling Units 29 | . 2 . 2 . 1 1 6 . 2 . . . . 5 . . . . 4 . . . . . . 3 . 3 Scanalyzers 7 | . . . 2 . 1 . . . 1 . . . . 1 . . . . . . . . . 1 . . . 1 Garrison Access 4 | . . . . . . 1 . . 1 . . . . . . . . . . . . . . . . . 1 1 Total Hacks 307 | . 25 . 40 . 27 24 27 1 29 . . 29 . 14 . 1 2 . 16 . . 17 . 4 2 18 5 26 Successful 192 | . 17 . 27 . 13 11 14 1 15 . . 29 . 8 . 1 2 . 8 . . 17 . 4 2 7 4 12 Failed 114 | . 8 . 13 . 14 13 13 . 14 . . . . 6 . . . . 8 . . . . . . 11 1 13 Catastrophic 16 | . . . . . 3 4 . . 1 . . . . . . . . . 1 . . . . . . 3 . 4 Database Lockouts 1 | . . . . . . . . . . . . . . . . . . . . . . . . . . . . 1 Manual 184 | . 22 . 33 . 20 15 17 . 14 . . . . 11 . . . . 10 . . . . . . 17 4 21 Terminals 134 | . 19 . 28 . 19 17 11 . 12 . . . . . . . . . 4 . . . . . 2 12 4 6 Fabricators 10 | . . . . . . . . . 1 . . . . 2 . . . . . . . . . . . . . 7 Repair Stations 24 | . 1 . 4 . 3 2 . . 8 . . . . . . . . . 4 . . . . . . . . 2 Recycling Units 61 | . 5 . 4 . 2 2 16 . 2 . . . . 10 . . . . 8 . . . . . . 6 . 6 Scanalyzers 22 | . . . 4 . 3 . . . 5 . . . . 2 . . . . . . . . . 4 . . . 4 Garrison Access 6 | . . . . . . 3 . . 1 . . . . . . . . . . . . . . . . . 1 1 Terminal Hacks 66 | . 2 . 2 . 1 1 . 1 . . . 29 . . . 1 2 . 1 . . 17 . . 2 1 2 4 Record 18 | . . . . . . . . . . . . 11 . . . . . . . . . 5 . . 2 . . . Part Schematic 14 | . . . . . 1 . . . . . . 9 . . . . . . . . . 4 . . . . . . Robot Schematic 6 | . . . . . . . . . . . . 6 . . . . . . . . . . . . . . . . Robot Analysis 7 | . 2 . 1 . . . . . . . . . . . . . . . . . . 4 . . . . . . Prototype ID Bank 7 | . . . . . . . . . . . . 3 . . . . . . . . . 4 . . . . . . Open Door 4 | . . . . . . 1 . . . . . . . . . 1 2 . . . . . . . . . . . Branch Access Points 2 | . . . . . . . . . . . . . . . . . . . 1 . . . . . . 1 . . Hauler Manifests 1 | . . . 1 . . . . . . . . . . . . . . . . . . . . . . . . . Zone Layout 5 | . . . . . . . . . . . . . . . . . . . . . . . . . . . 2 3 Proto ID Catalog 2 | . . . . . . . . 1 . . . . . . . . . . . . . . . . . . . 1 Fabricator Hacks 2 | . . . . . . . . . 1 . . . . 1 . . . . . . . . . . . . . . Network Status 1 | . . . . . . . . . 1 . . . . . . . . . . . . . . . . . . . Load Schematic 1 | . . . . . . . . . . . . . . 1 . . . . . . . . . . . . . . Repair Station Hacks 7 | . . . 2 . 1 2 . . 1 . . . . . . . . . 1 . . . . . . . . . Scan Component 5 | . . . 1 . 1 1 . . 1 . . . . . . . . . 1 . . . . . . . . . Repair 2 | . . . 1 . . 1 . . . . . . . . . . . . . . . . . . . . . . Recycling Unit Hacks 13 | . 3 . 2 . 1 1 4 . . . . . . . . . . . 1 . . . . . . 1 . . Retrieve Components 13 | . 3 . 2 . 1 1 4 . . . . . . . . . . . 1 . . . . . . 1 . . Scanalyzer 17 | . . . 4 . 2 . . . 3 . . . . 1 . . . . . . . . . 4 . . . 3 Insert Component 3 | . . . 1 . 1 . . . 1 . . . . . . . . . . . . . . . . . . . Analyze 4 | . . . 1 . 1 . . . 2 . . . . . . . . . . . . . . . . . . . Retrieve Study 10 | . . . 2 . . . . . . . . . . 1 . . . . . . . . . 4 . . . 3 Garrison Access Hacks 2 | . . . . . . . . . 1 . . . . . . . . . . . . . . . . . 1 . Seal Access 2 | . . . . . . . . . 1 . . . . . . . . . . . . . . . . . 1 . Unauthorized Hacks 85 | . 12 . 17 . 8 7 10 . 9 . . . . 6 . . . . 5 . . . . . . 5 1 5 Terminals 54 | . 9 . 14 . 7 7 5 . 7 . . . . . . . . . 1 . . . . . . 2 1 1 Track 1 | . . . . . . . . . . . . . . . . . . . . . . . . . . . 1 . Assimilate 4 | . . . . . . . . . 1 . . . . . . . . . 1 . . . . . . 1 . 1 Botnet 15 | . 3 . 4 . 2 2 2 . 1 . . . . . . . . . . . . . . . . 1 . . Operators 3 | . 1 . 2 . . . . . . . . . . . . . . . . . . . . . . . . . Skim 31 | . 5 . 8 . 5 5 3 . 5 . . . . . . . . . . . . . . . . . . . Fabricators 1 | . . . . . . . . . . . . . . 1 . . . . . . . . . . . . . . Recompile 1 | . . . . . . . . . . . . . . 1 . . . . . . . . . . . . . . Repair Stations 3 | . 1 . 1 . 1 . . . . . . . . . . . . . . . . . . . . . . . Patch 3 | . 1 . 1 . 1 . . . . . . . . . . . . . . . . . . . . . . . Recycling Units 26 | . 2 . 2 . . . 5 . 2 . . . . 5 . . . . 4 . . . . . . 3 . 3 Tunnel 9 | . 2 . 2 . . . 5 . . . . . . . . . . . . . . . . . . . . . Fedlink 17 | . . . . . . . . . 2 . . . . 5 . . . . 4 . . . . . . 3 . 3 Scanalyzers . | . . . . . . . . . . . . . . . . . . . . . . . . . . . . . Garrison Access 1 | . . . . . . . . . . . . . . . . . . . . . . . . . . . . 1 Jam 1 | . . . . . . . . . . . . . . . . . . . . . . . . . . . . 1 Data Cores Recovered 4 | . . . . . . 1 . . 1 . . . . 1 . . . . . . . . . . . . 1 . Used . | . . . . . . . . . . . . . . . . . . . . . . . . . . . . . Hacking Detections 73 | . 5 . 10 . 7 8 10 . 11 . . . . 4 . . . . 4 . . . . . . 6 . 8 Full Trace Events 9 | . . . . . 1 . . . 2 . . . . . . . . . 1 . . . . . . 1 . 4 Feedback Events . | . . . . . . . . . . . . . . . . . . . . . . . . . . . . . Feedback Blocked . | . . . . . . . . . . . . . . . . . . . . . . . . . . . . . Robot Schematics Acquired 7 | . . . . . . . . . . . . 6 . . . . . . . . . . . . 1 . . . Robots Built . | . . . . . . . . . . . . . . . . . . . . . . . . . . . . . Authchips . | . . . . . . . . . . . . . . . . . . . . . . . . . . . . . Time . | . . . . . . . . . . . . . . . . . . . . . . . . . . . . . Total Robot Build Rating . | . . . . . . . . . . . . . . . . . . . . . . . . . . . . . Part Schematics Acquired 23 | . . . 1 . 1 . . . . . . 9 . . . . . . . . . 4 . . 8 . . . Parts Built . | . . . . . . . . . . . . . . . . . . . . . . . . . . . . . Authchips . | . . . . . . . . . . . . . . . . . . . . . . . . . . . . . Time . | . . . . . . . . . . . . . . . . . . . . . . . . . . . . . Total Part Build Rating . | . . . . . . . . . . . . . . . . . . . . . . . . . . . . . Part Studies Acquired 10 | . . . 2 . . . . . . . . . . 1 . . . . . . . . . 4 . . . 3 Parts Repaired 2 | . . . 1 . . 1 . . . . . . . . . . . . . . . . . . . . . . Time 56 | . . . 18 . . 38 . . . . . . . . . . . . . . . . . . . . . . Parts Recycled . | . . . . . . . . . . . . . . . . . . . . . . . . . . . . . Recycled Matter . | . . . . . . . . . . . . . . . . . . . . . . . . . . . . . Retrieved Matter . | . . . . . . . . . . . . . . . . . . . . . . . . . . . . . Retrieved Components 42 | . 10 . 11 . 1 10 7 . . . . . . . . . . . 2 . . . . . . 1 . . Parts Scanalyzed 2 | . . . 1 . 1 . . . . . . . . . . . . . . . . . . . . . . . Part Schematics Acquired 1 | . . . 1 . . . . . . . . . . . . . . . . . . . . . . . . . Parts Damaged 1 | . . . . . 1 . . . . . . . . . . . . . . . . . . . . . . . Bothacking | -11 -10 -10 -9 -9 -8 -8 -8 -8 -6 -6 -6 -6 -5 -5 -5 -5 -5 -4 -4 -4 -4 -4 -3 -3 -3 -2 -2 -2 ------------ Run | Yrd Mat Min Mat Min Mat Sto Rec Scr Fac Low Low Dat Pro Fac Upp Upp War Pro Fac Upp Upp Zhi Pro Res Qua Res Tes Frg Used RIF Installer . | . . . . . . . . . . . . . . . . . . . . . . . . . . . . . Robots Hacked . | . . . . . . . . . . . . . . . . . . . . . . . . . . . . . Non-combat . | . . . . . . . . . . . . . . . . . . . . . . . . . . . . . Combat . | . . . . . . . . . . . . . . . . . . . . . . . . . . . . . Robot Hacks Applied . | . . . . . . . . . . . . . . . . . . . . . . . . . . . . . Relay Couplers Released . | . . . . . . . . . . . . . . . . . . . . . . . . . . . . . Fabnet Peak Effective % . | . . . . . . . . . . . . . . . . . . . . . . . . . . . . . Robots Rewired . | . . . . . . . . . . . . . . . . . . . . . . . . . . . . . Allies Hacked . | . . . . . . . . . . . . . . . . . . . . . . . . . . . . . Hacks Repelled . | . . . . . . . . . . . . . . . . . . . . . . . . . . . . . Allies | -11 -10 -10 -9 -9 -8 -8 -8 -8 -6 -6 -6 -6 -5 -5 -5 -5 -5 -4 -4 -4 -4 -4 -3 -3 -3 -2 -2 -2 -------- Run | Yrd Mat Min Mat Min Mat Sto Rec Scr Fac Low Low Dat Pro Fac Upp Upp War Pro Fac Upp Upp Zhi Pro Res Qua Res Tes Frg Total Allies 17 | . . 3 . . . 10 . . 1 . . . . . . . . . 1 . . . . . . 1 . 1 Largest Group 10 | . . 3 2 . . 10 . . 1 . . . . . . . . . 1 . . . . . . 1 . . Highest-Rated Group 173 | . . 40 24 . . 173 . . 10 . . . . . . . . . 10 . . . . . . 26 . . Highest-Rated Ally 29 | . . 16 16 . . 29 . . 10 . . . . . . . . . 10 . . . . . . 26 . . Initial UFD Resources 106 | . . . . . . . . . 23 37 37 37 41 41 61 61 61 65 65 83 83 83 86 86 86 90 106 106 Total Orders . | . . . . . . . . . . . . . . . . . . . . . . . . . . . . . Ally Attacks 95 | . . 16 22 . . 57 . . . . . . . . . . . . . . . . . . . . . . Total Damage 1056 | . . 207 214 . . 635 . . . . . . . . . . . . . . . . . . . . . . Kills 14 | . . 2 5 . . 7 . . . . . . . . . . . . . . . . . . . . . . Allies Corrupted . | . . . . . . . . . . . . . . . . . . . . . . . . . . . . . Allies Melted 2 | . . . . . . . . . . . . . . . . . . . . . . . . . . . . 2 Intel | -11 -10 -10 -9 -9 -8 -8 -8 -8 -6 -6 -6 -6 -5 -5 -5 -5 -5 -4 -4 -4 -4 -4 -3 -3 -3 -2 -2 -2 ------- Run | Yrd Mat Min Mat Min Mat Sto Rec Scr Fac Low Low Dat Pro Fac Upp Upp War Pro Fac Upp Upp Zhi Pro Res Qua Res Tes Frg Active Infowar (turns) 21008 | 63 891 . 2616 844 1512 1487 983 2225 407 284 319 23 120 293 317 140 333 146 301 336 567 107 387 126 170 1022 401 4588 Optics 10374 | . . . . . . . . . 394 284 319 23 120 293 317 140 333 146 301 336 567 107 387 126 170 1022 401 4588 Sensors 8215 | . . . . . . . . . 395 284 319 23 120 293 317 140 333 146 301 336 567 107 387 126 170 966 401 2484 Structural 6029 | . . . . . . . . . 176 284 319 23 120 290 317 140 333 146 301 336 567 107 387 126 170 949 401 537 Seismic 10648 | 63 891 . 2616 844 1512 1487 983 2225 27 . . . . . . . . . . . . . . . . . . . Cloaking 3340 | . . . . . . . . . . . . . . . . . 7 . . . . . . 1 133 926 401 1872 Jamming 3181 | . . . . . . . . . . . . . . . . . . . 2 3 . 81 386 126 170 959 401 1053 Robot Analysis Total 7 | . 2 . 1 . . . . . . . . . . . . . . . . . . 4 . . . . . . Derelict Logs Recovered 15 | . . 2 . 3 . . . . . 1 3 . 1 . 2 1 . 1 . 1 . . . . . . . . Drone Launches . | . . . . . . . . . . . . . . . . . . . . . . . . . . . . . Drone Recoveries . | . . . . . . . . . . . . . . . . . . . . . . . . . . . . . Exploration | -11 -10 -10 -9 -9 -8 -8 -8 -8 -6 -6 -6 -6 -5 -5 -5 -5 -5 -4 -4 -4 -4 -4 -3 -3 -3 -2 -2 -2 ------------- Run | Yrd Mat Min Mat Min Mat Sto Rec Scr Fac Low Low Dat Pro Fac Upp Upp War Pro Fac Upp Upp Zhi Pro Res Qua Res Tes Frg Turns Passed 23849 | 151 1435 1260 3255 855 1812 1487 983 2225 407 284 319 23 120 293 317 140 333 146 301 336 567 107 387 126 170 1022 401 4587 Spaces Moved 21885 | 56 643 682 1269 502 804 675 592 1234 1023 810 901 89 298 682 660 411 770 426 759 476 409 176 447 217 362 2252 690 3570 Core 12 | 7 . . . . . . . . . . . . . . . . . . . . . . . . . . . 5 Treads 6615 | 49 643 682 1269 502 804 675 592 1234 4 . . . . . . . . . . . . . . . . . . 161 Legs 742 | . . . . . . . . . . . . . . . . . . . . . . . . . . . . 742 Wheels . | . . . . . . . . . . . . . . . . . . . . . . . . . . . . . Hover 60 | . . . . . . . . . . . . . . . . . . . . . . . . . . . . 60 Flight 14456 | . . . . . . . . . 1019 810 901 89 298 682 660 411 770 426 759 476 409 176 447 217 362 2252 690 2602 Fastest Speed 23 | 50 160 160 160 160 160 160 160 160 23 23 23 23 23 26 30 30 30 30 30 31 31 32 32 30 30 26 25 24 Average Speed 73 | 146 160 160 160 160 162 160 160 160 25 23 23 23 25 28 30 30 30 30 30 64 46 33 77 30 30 31 36 53 Slowest Speed 400 | 160 240 160 200 160 200 160 160 160 160 23 23 23 26 30 30 30 32 30 112 111 114 112 112 30 30 110 113 400 Overloaded Moves . | . . . . . . . . . . . . . . . . . . . . . . . . . . . . . Propulsion Burnouts . | . . . . . . . . . . . . . . . . . . . . . . . . . . . . . Robots Hopped 34 | . . . . . . . . . 2 . . . . . . . . . 1 . . . . . 11 7 5 8 Potential Cave-ins 6 | . . . . . 2 . . . . . . . . . . . . . . . . . . . . 4 . . Cave-ins Triggered . | . . . . . . . . . . . . . . . . . . . . . . . . . . . . . Teleports 3 | . . . . . . . . . . . . . . . . . . . . . . . . . 1 1 1 . Exploration Rate (%) 66 | 5 96 97 98 99 62 91 96 88 30 89 96 75 59 25 83 73 90 57 21 73 62 62 64 6 35 57 66 74 Regions Visited 28 Branch Regions 20 Pre-discovered Areas 23 | . 2 2 5 1 3 . 5 . 1 . . 1 . . . . . . . . . 3 . . . . . . Known Exits Taken 27 | . 1 1 1 1 1 1 1 1 1 1 1 1 1 1 1 1 1 1 1 1 1 1 1 1 1 1 1 . Unknown Exits Taken 1 | 1 . . . . . . . . . . . . . . . . . . . . . . . . . . . . Scrap Searched 38 | . . 1 . 1 . . . 11 . 3 3 . 3 . 3 3 . 2 . 4 1 . 3 . . . . . Spaces Dug 115 | . . . 4 . 4 3 . . 21 2 1 . 1 7 7 1 3 . 7 2 1 . 2 5 2 26 2 14 Terrain Destroyed 699 | . . 7 22 11 23 16 5 . 21 2 14 . 13 25 18 1 7 . 7 2 18 . 24 5 2 187 14 255 Melee 102 | . . . . . . 1 . . 21 2 1 . 1 7 7 1 . . 7 2 1 . 2 5 2 26 2 14 Projectile 149 | . . 7 22 2 23 15 5 . . . . . . . . . 7 . . . 1 . . . . . . 67 AOE 448 | . . . . 9 . . . . . . 13 . 12 18 11 . . . . . 16 . 22 . . 161 12 174 Terrain Rammed . | . . . . . . . . . . . . . . . . . . . . . . . . . . . . . Walls Destroyed . | . . . . . . . . . . . . . . . . . . . . . . . . . . . . . Machines Disabled . | . . . . . . . . . . . . . . . . . . . . . . . . . . . . . Actions | -11 -10 -10 -9 -9 -8 -8 -8 -8 -6 -6 -6 -6 -5 -5 -5 -5 -5 -4 -4 -4 -4 -4 -3 -3 -3 -2 -2 -2 --------- Run | Yrd Mat Min Mat Min Mat Sto Rec Scr Fac Low Low Dat Pro Fac Upp Upp War Pro Fac Upp Upp Zhi Pro Res Qua Res Tes Frg Total 27977 | 85 876 804 2283 536 1137 931 605 1488 1116 898 1011 90 337 756 762 419 864 441 811 499 781 209 480 267 393 2457 797 5844 Wait 4604 | . 117 93 838 13 203 167 . 239 22 81 108 . 38 34 90 1 67 15 25 11 367 . 28 27 17 106 61 1836 Move 21796 | 55 642 681 1268 501 803 674 591 1233 1018 809 900 88 297 681 659 410 769 425 756 475 408 175 446 216 341 2238 681 3556 Hop 27 | . . . . . . . . . 2 . . . . . . . . . 1 . . . . . 9 6 3 6 Pick Up 89 | 2 8 2 17 2 3 . . 6 4 1 1 . . 5 . 1 1 . 4 2 . 3 . 1 3 3 4 16 Fast Attach 158 | 7 2 1 6 . 8 5 1 . 3 . . 1 . 4 1 1 9 . 4 3 1 9 1 . 2 12 7 70 Attach 52 | . 1 . 5 2 1 . . 1 10 . . . . 2 . . . . 2 1 . 1 . 2 2 2 1 19 Detach 17 | . . 1 . . . . . . . . . . . . . . . . . . 1 . . . . . . 15 Swap 104 | 1 12 1 21 6 15 6 . 1 6 . . . . 2 . . 1 . 1 . 1 1 . 1 2 4 4 18 Drop 180 | . 2 1 21 3 14 4 1 8 12 1 1 1 . 8 1 1 10 . 6 3 1 10 1 . 4 11 12 43 Fire 676 | 20 92 24 107 9 89 74 11 . . . . . 1 3 1 . 7 . . . 1 . 2 . 3 13 2 217 Melee 228 | . . . . . . 1 . . 34 6 1 . 1 17 10 5 . 1 12 4 1 10 2 6 10 58 22 27 Ram . | . . . . . . . . . . . . . . . . . . . . . . . . . . . . . Kick . | . . . . . . . . . . . . . . . . . . . . . . . . . . . . . Crush 2 | . . . . . 1 . 1 . . . . . . . . . . . . . . . . . . . . . Escape Stasis 34 | . . . . . . . . . 5 . . . . . . . . . . . . . . 14 . 4 . 11 Rewire . | . . . . . . . . . . . . . . . . . . . . . . . . . . . . . Trap . | . . . . . . . . . . . . . . . . . . . . . . . . . . . . . Miscellaneous 10 | . . . . . . . . . . . . . . . . . . . . . . . . . . . . 10 Route ------- -11/Scrapyard -10/Materials (discovered 5 exits: *Mat x3 / *Min / Sub) -10/Mines (discovered 3 exits: *Mat x2 / *Sub) -9/Materials (discovered 5 exits: *Mat x3 / *Min x2) -9/Mines (discovered 3 exits: *Mat x2 / [*Exi]) -8/Materials (discovered 4 exits: *Fac x3 / *Sto) -8/Storage (discovered 2 exits: Fac / *Rec) -8/Recycling (discovered 2 exits: *Fac / *Scr) -8/Scraptown (discovered 2 exits: *Fac x2) -6/Factory (discovered 3 exits: *Fac / *Low x2) -6/Lower Caves -6/Lower Caves (discovered 2 exits: *Fac / *Dat) -6/Data Miner -5/Proximity Caves -5/Factory (discovered 2 exits: Fac / *Upp) -5/Upper Caves -5/Upper Caves -5/Warlord -4/Proximity Caves -4/Factory (discovered 4 exits: *Upp x2 / Ext x2) -4/Upper Caves -4/Upper Caves (discovered 2 exits: *Res / *Zhi) -4/Zhirov -3/Proximity Caves -3/Research (discovered 2 exits: Res / *Qua) -3/Quarantine -2/Research (discovered 3 exits: *Acc / *Tes x2) -2/Testing (discovered 3 exits: *Acc / *Sec / *Frg) -2/Protoforge 0bPrime History --------- Turn | Location | Event 9 | -11/Scrapyard | Discovered new exit (range 16) 152 | -11/Scrapyard | Entered Materials 305 | -10/Materials | Build established: Mutant 395 | -10/Materials | Discovered new exit (range 13) 833 | -10/Materials | Discovered new exit (range 13) 894 | -10/Materials | Learned Storage terminal intel 921 | -10/Materials | Identified exit to Mines 939 | -10/Materials | Learned location of 1 exit from Recycling 947 | -10/Materials | Identified exit to Materials 947 | -10/Materials | Identified exit to Subcaves 954 | -10/Materials | Learned 2 Mines zone layouts 997 | -10/Materials | Core integrity fell below 50% 998 | -10/Materials | Learned 2 Storage zone layouts 1587 | -10/Materials | Entered Mines 1809 | -10/Mines | A weapon hastily lodged in a ceiling crevice suddenly fell to the ground 1894 | -10/Mines | Assisted by bots powering up and referring to "LRC-V3" 2452 | -10/Mines | Learned location of Storage (-8) 2715 | -10/Mines | Discovered exit to Materials (range 7) 2847 | -10/Mines | Entered Materials 2847 | -9/Materials | Accompanied by 2 allies 2847 | -9/Materials | Evolved 2 slots: Propulsion x1, Utility x1 3220 | -9/Materials | Repaired Broken Lgt. Treads 3427 | -9/Materials | Discovered new exit (range 7) 4135 | -9/Materials | Discovered new exit (range 11) 4793 | -9/Materials | Learned location of Zion (-7) 4854 | -9/Materials | Learned Storage garrison access intel 4906 | -9/Materials | Learned 2 Storage zone layouts 4980 | -9/Materials | Identified exit to Materials 4980 | -9/Materials | Identified exit to Mines 5123 | -9/Materials | Learned 4 Recycling zone layouts 6084 | -9/Materials | Build established: Scavenger-Mutant 6102 | -9/Materials | Entered Mines 6109 | -9/Mines | Received a Rocket Launcher from a helpful Derelict 6119 | -9/Mines | Deemed a non-threat by the Exiles lab entrance 6121 | -9/Mines | Discovered new exit (range 5) 6170 | -9/Mines | Learned Materials garrison access intel 6192 | -9/Mines | Core integrity fell below 50% 6637 | -9/Mines | Found a damaged Exp. Sensor Array with a note attached 6641 | -9/Mines | Found Prototype Device 6780 | -9/Mines | Learned Materials emergency access door positions 6957 | -9/Mines | Entered Materials 6957 | -8/Materials | Evolved 2 slots: Propulsion x1, Utility x1 6959 | -8/Materials | Loaded intel: 1 garrison access location 7529 | -8/Materials | Discovered new exit (range 5) 8373 | -8/Materials | Discovered new exit (range 8) 8548 | -8/Materials | Identified exit to Factory 8588 | -8/Materials | Identified exit to Storage 8619 | -8/Materials | Learned 4 Recycling zone layouts 8638 | -8/Materials | Learned 8 Factory zone layouts 8649 | -8/Materials | Learned Storage emergency access door positions 8660 | -8/Materials | Learned Storage emergency access door positions 8727 | -8/Materials | Identified Exp. Sensor Array 8769 | -8/Materials | Entered Storage 8770 | -8/Storage | Identified exit to Recycling 8772 | -8/Storage | Loaded intel: 15 terminal locations 8773 | -8/Storage | Loaded intel: 1 garrison access location 8917 | -8/Storage | Repaired Ion Cannon 8976 | -8/Storage | Build established: Mutant 9076 | -8/Storage | Garrison activated, responded to threat 9314 | -8/Storage | Assisted by bots powering up and referring to "LRC-V3" 9451 | -8/Storage | Learned 2 Storage zone layouts 9464 | -8/Storage | Used back door to open Recycling access 9513 | -8/Storage | Learned location of 2 exits from Lower Caves 9603 | -8/Storage | Build established: Commander-Mutant 9636 | -8/Storage | Learned Factory recycling unit intel 9670 | -8/Storage | Learned 2 Storage zone layouts 9729 | -8/Storage | Lost 7 allies 9765 | -8/Storage | Learned Factory terminal intel 10221 | -8/Storage | Build established: Scavenger-Mutant 10256 | -8/Storage | Entered Recycling 10257 | -8/Recycling | Identified exit to Factory 10258 | -8/Recycling | Identified exit to Scraptown 11199 | -8/Recycling | Scanned before Scraplab entrance 11221 | -8/Recycling | Entered Scraplab 11239 | -8/Recycling | Entered Scraptown 11239 | -8/Scraptown | System corruption cleaned by C-Scrubber 11487 | -8/Scraptown | Visited TADAMA 11506 | -8/Scraptown | Visited Cave Peace 11525 | -8/Scraptown | Heard Great Nut preacher, LISTEN AND RECITE! 11540 | -8/Scraptown | Visited Shadow of the Wyrm 11549 | -8/Scraptown | Visited Bundlers 11664 | -8/Scraptown | Visited Cyclists 11690 | -8/Scraptown | Visited Supply Room 11981 | -8/Scraptown | Discovered exit to Factory (range 11) 12159 | -8/Scraptown | Visited Junk Repository 12215 | -8/Scraptown | Visited UFD Registry 12218 | -8/Scraptown | Registered with UFD as "Cryogunner" 12274 | -8/Scraptown | Visited Science Testing Area 12309 | -8/Scraptown | Visited Junk Cannon Lab 12338 | -8/Scraptown | Visited Scrap Suit Storage 12362 | -8/Scraptown | Visited Observation Area 12386 | -8/Scraptown | Visited Infowarlord's Domain 12416 | -8/Scraptown | Found Spectral Analyzer 12445 | -8/Scraptown | Visited DA-N13 Charitable Foundation 12459 | -8/Scraptown | Found DCF Scrap (30 items) 12513 | -8/Scraptown | Visited Science Guys 12721 | -8/Scraptown | Visited Curators Association 12782 | -8/Scraptown | Visited Botcube Research 12811 | -8/Scraptown | Visited Derelict Rescue Squad 13042 | -8/Scraptown | Discovered exit to Factory (range 5) 13384 | -8/Scraptown | Met Optimus 13384 | -8/Scraptown | Accepted into 0bPrime 13464 | -8/Scraptown | Entered Factory 13464 | -6/Factory | Evolved 4 slots: Propulsion x2, Utility x2 13465 | -6/Factory | Identified exit to Lower Caves 13467 | -6/Factory | Loaded intel: 26 terminal locations 13468 | -6/Factory | Loaded intel: 8 recycling unit locations 13773 | -6/Factory | Build established: Hacker-Scout 13822 | -6/Factory | Learned 8 Factory zone layouts 13826 | -6/Factory | Discovered new exit (range 5) 13827 | -6/Factory | Identified exit to Factory 13847 | -6/Factory | Loaded intel: 8 recycling unit locations 13851 | -6/Factory | Learned location of Protoforge (-2) 13871 | -6/Factory | Entered Lower Caves 13872 | -6/Lower Caves | Identified exit to Lower Caves 14155 | -6/Lower Caves | Entered another Lower Caves area 14156 | -6/Lower Caves | Identified exit to Data Miner 14355 | -6/Lower Caves | Encountered a Warlord checkpoint 14378 | -6/Lower Caves | Learned Factory terminal intel 14460 | -6/Lower Caves | Learned Factory terminal intel 14474 | -6/Lower Caves | Entered Data Miner 14475 | -6/Data Miner | Discovered new exit (range 6) 14478 | -6/Data Miner | Met Data Miner 14483 | -6/Data Miner | Learned location of Section 7 (-2) 14483 | -6/Data Miner | Acquired the access code to Warlord's prototype stash 14487 | -6/Data Miner | Received God Mode back door access code from Data Miner 14497 | -6/Data Miner | Identified exit to Proximity Caves 14497 | -6/Data Miner | Entered Proximity Caves 14499 | -5/Proximity Caves | Attracted the attention of an 0b10 checkpoint 14597 | -5/Proximity Caves | Learned Factory non-interactive machine intel 14604 | -5/Proximity Caves | Discovered exit to Factory (range 22) 14617 | -5/Proximity Caves | Entered Factory 14617 | -5/Factory | Evolved 2 slots: Utility x2 14618 | -5/Factory | Identified exit to Upper Caves 14619 | -5/Factory | Identified exit to Factory 14620 | -5/Factory | Loaded intel: 214 non-interactive machine locations 14621 | -5/Factory | Loaded intel: 26 terminal locations 14623 | -5/Factory | Watched by a mysterious "MATRIX" hacker 14642 | -5/Factory | Loaded intel: 8 recycling unit locations 14900 | -5/Factory | Found Imp. Powered Armor 14910 | -5/Factory | Entered Upper Caves 14936 | -5/Upper Caves | Found DCF Scrap (14 items) 14955 | -5/Upper Caves | Encountered a Warlord checkpoint 15121 | -5/Upper Caves | Learned Factory stockpile data 15159 | -5/Upper Caves | Learned Factory emergency access door positions 15181 | -5/Upper Caves | Discovered new exit (range 23) 15227 | -5/Upper Caves | Identified exit to Upper Caves 15227 | -5/Upper Caves | Entered another Upper Caves area 15316 | -5/Upper Caves | Encountered a Warlord checkpoint 15359 | -5/Upper Caves | Discovered new exit (range 4) 15360 | -5/Upper Caves | Identified exit to Warlord 15361 | -5/Upper Caves | Learned Factory interactive machine intel 15367 | -5/Upper Caves | Entered Warlord 15483 | -5/Warlord | Visited the Vortex Lab 15484 | -5/Warlord | Found Prototype Energy Gun 15484 | -5/Warlord | Identified Vortex Rail 15496 | -5/Warlord | Warlord's base attacked by MAIN.C 15517 | -5/Warlord | Found Prototype Processor 15517 | -5/Warlord | Identified Exp. Target Analyzer 15522 | -5/Warlord | Found Prototype Device 15522 | -5/Warlord | Identified Exp. Cloaking Device 15537 | -5/Warlord | Rebuked by Warlord 15560 | -5/Warlord | Found Prototype Special Weapon 15560 | -5/Warlord | Identified RU-N14's Throwing Claymores v3 15562 | -5/Warlord | Found RU-N14's Throwing Claymores v3 15591 | -5/Warlord | Opened side exit 15698 | -5/Warlord | Discovered new exit (range 9) 15700 | -5/Warlord | Identified exit to Proximity Caves 15700 | -5/Warlord | Entered Proximity Caves 15759 | -4/Proximity Caves | Discovered exit to Factory (range 3) 15760 | -4/Proximity Caves | Learned Research security intel 15846 | -4/Proximity Caves | Entered Factory 15846 | -4/Factory | Evolved 2 slots: Power x1, Utility x1 15849 | -4/Factory | Loaded intel: 55 interactive machine locations 15850 | -4/Factory | Loaded intel: 27 terminal locations 15857 | -4/Factory | Discovered new exit (range 18) 15865 | -4/Factory | Loaded intel: 8 recycling unit locations 15925 | -4/Factory | Identified exit to Upper Caves 15925 | -4/Factory | Identified exit to Extension 16093 | -4/Factory | Garrison activated, responded to threat 16147 | -4/Factory | Entered Upper Caves 16156 | -4/Upper Caves | Found Alien Artifact 16156 | -4/Upper Caves | Identified Core Expander 16156 | -4/Upper Caves | Installed Core Expander, added new Weapon slot 16174 | -4/Upper Caves | Learned 12 Research zone layouts 16184 | -4/Upper Caves | Build established: Hacker-Ninja 16237 | -4/Upper Caves | Encountered a Warlord checkpoint 16462 | -4/Upper Caves | Discovered new exit (range 9) 16471 | -4/Upper Caves | Identified exit to Upper Caves 16483 | -4/Upper Caves | Entered another Upper Caves area 16504 | -4/Upper Caves | Discovered new exit (range 18) 16542 | -4/Upper Caves | Identified exit to Research 16557 | -4/Upper Caves | Build established: Hacker-Assassin 16680 | -4/Upper Caves | Discovered new exit (range 23) 16893 | -4/Upper Caves | Build established: Hacker-Ninja 17050 | -4/Upper Caves | Identified exit to Zhirov 17050 | -4/Upper Caves | Entered Zhirov 17051 | -4/Zhirov | Discovered new exit (range 3) 17057 | -4/Zhirov | Met Zhirov 17063 | -4/Zhirov | Learned location of Command (-1) 17066 | -4/Zhirov | Zhirov requested help retrieving the SGEMP Prototype 17074 | -4/Zhirov | Found Alien Artifact 17074 | -4/Zhirov | Identified Integrated Reactor 17074 | -4/Zhirov | Installed Integrated Reactor, increased core energy generation (+10) 17136 | -4/Zhirov | Found Alien Artifact 17156 | -4/Zhirov | Identified exit to Proximity Caves 17157 | -4/Zhirov | Entered Proximity Caves 17277 | -3/Proximity Caves | Spotted B-86 Titan 17421 | -3/Proximity Caves | Build established: Hacker-Assassin 17433 | -3/Proximity Caves | Spotter reported a threat 17511 | -3/Proximity Caves | Spotter reported a threat 17542 | -3/Proximity Caves | Discovered exit to Research (range 6) 17544 | -3/Proximity Caves | Entered Research 17544 | -3/Research | Evolved 2 slots: Propulsion x1, Utility x1 17545 | -3/Research | Identified exit to Research 17566 | -3/Research | Discovered new exit (range 15) 17626 | -3/Research | Identified exit to Quarantine 17635 | -3/Research | Found Exp. Signal Interpreter 17670 | -3/Research | Entered Quarantine 17710 | -3/Quarantine | Identified Transdimensional Reconstructor 17710 | -3/Quarantine | Warped through subspace 17756 | -3/Quarantine | Found Transdimensional Reconstructor 17757 | -3/Quarantine | Found Transdimensional Reconstructor 17771 | -3/Quarantine | Build established: Hacker-Ninja 17810 | -3/Quarantine | Discovered exit to Research (range 7) 17829 | -3/Quarantine | Found Alien Artifact 17840 | -3/Quarantine | Entered Research 17840 | -2/Research | Evolved 2 slots: Propulsion x1, Utility x1 17926 | -2/Research | Spotted B-90 Cyclops 18054 | -2/Research | Warped through subspace 18066 | -2/Research | Spotted B-90 Cyclops 18088 | -2/Research | Loaded intel: 5 recycling unit locations 18186 | -2/Research | Spotted B-90 Cyclops 18233 | -2/Research | Found Fusion Bomb Launcher 18318 | -2/Research | Found Prototype Launcher 18318 | -2/Research | Identified Gui. Micro-nuke Launcher 18442 | -2/Research | Discovered new exit (range 13) 18446 | -2/Research | Identified exit to Access 18565 | -2/Research | Found Prototype Device 18565 | -2/Research | Identified Exp. Thermal Defense Suite 18637 | -2/Research | Incoming investigation squad redirected 18813 | -2/Research | Identified exit to Testing 18862 | -2/Research | Entered Testing 19139 | -2/Testing | Discovered exit to Access (range 11) 19205 | -2/Testing | Spotted Fortress 19208 | -2/Testing | Warped through subspace 19261 | -2/Testing | Discovered new exit (range 5) 19261 | -2/Testing | Discovered new exit (range 6) 19262 | -2/Testing | Identified exit to Section 7 19263 | -2/Testing | Identified exit to Protoforge 19263 | -2/Testing | Entered Protoforge 19263 | -2/Protoforge | Spotted B-90 Cyclops 19268 | -2/Protoforge | Central database locked down 19491 | -2/Protoforge | Spotted Hotshot 19559 | -2/Protoforge | Spotted Hotshot 19618 | -2/Protoforge | Spotted Immortal 19618 | -2/Protoforge | Spotted Immortal 19620 | -2/Protoforge | Spotted Decapitator 19620 | -2/Protoforge | Spotted Decapitator 19620 | -2/Protoforge | Spotted Decapitator 19646 | -2/Protoforge | Found Prototype Launcher 19655 | -2/Protoforge | Identified Cep. Rapid Grenade Launcher 19696 | -2/Protoforge | Found Prototype Protection 19696 | -2/Protoforge | Identified Cep. Core Shell 19710 | -2/Protoforge | Spotted EXE-6 19710 | -2/Protoforge | Spotted EXE-6 19717 | -2/Protoforge | Spotted SKR-2 19723 | -2/Protoforge | UFD initiated attack on Protoforge (Readiness: High) 19723 | -2/Protoforge | Loaded intel: 3 recycling unit locations 19743 | -2/Protoforge | Superfortress began startup sequence 19759 | -2/Protoforge | Optimus greeted in Protoforge 19762 | -2/Protoforge | Found Cep. XC Strikerail 19776 | -2/Protoforge | Found Cep. XC Strikerail 19778 | -2/Protoforge | Found Prototype Processor 19782 | -2/Protoforge | Found Prototype Processor 19782 | -2/Protoforge | Identified Exp. Armor Integrity Analyzer 19786 | -2/Protoforge | Found Prototype Processor 19786 | -2/Protoforge | Identified Exp. Core Analyzer (x2) 19789 | -2/Protoforge | Found Exp. Core Analyzer 19799 | -2/Protoforge | Found Prototype Device 19801 | -2/Protoforge | Identified Exp. Kinecellerator 19864 | -2/Protoforge | Spotted AP7-3 19864 | -2/Protoforge | Spotted AP7-3 19904 | -2/Protoforge | Found Cep. XC Strikerail 19908 | -2/Protoforge | Found Exp. Target Analyzer 19909 | -2/Protoforge | Spotted Striker 19912 | -2/Protoforge | Spotted Striker 19920 | -2/Protoforge | Destroyed Striker 19931 | -2/Protoforge | Spotted Striker 19931 | -2/Protoforge | Spotted Overlord 19931 | -2/Protoforge | Spotted Hotshot 19933 | -2/Protoforge | Spotted Hotshot 19934 | -2/Protoforge | Met 7R-MNS 19957 | -2/Protoforge | Destroyed Hotshot 19978 | -2/Protoforge | Destroyed 7 combat bots 19988 | -2/Protoforge | Lost 6 allies 19998 | -2/Protoforge | Spotted Striker 19998 | -2/Protoforge | Destroyed Striker 20000 | -2/Protoforge | Spotted Striker 20010 | -2/Protoforge | Destroyed Striker 20023 | -2/Protoforge | Spotted Executioner 20030 | -2/Protoforge | Spotted Striker 20031 | -2/Protoforge | Destroyed 7 combat bots 20035 | -2/Protoforge | Destroyed Striker 20039 | -2/Protoforge | Spotted Striker 20108 | -2/Protoforge | Destroyed 14 combat bots 20144 | -2/Protoforge | Build established: Scavenger-Gunner 20209 | -2/Protoforge | UFD reported confirmed Drillbomb installation 20291 | -2/Protoforge | Spotted Striker 20292 | -2/Protoforge | Spotted Striker 20295 | -2/Protoforge | Destroyed Striker 20308 | -2/Protoforge | Identified Subatomic Replicator 20308 | -2/Protoforge | Used Subatomic Replicator to replicate Cep. Rapid Grenade Launcher 20313 | -2/Protoforge | Spotted Executioner 20316 | -2/Protoforge | Spotted Striker 20324 | -2/Protoforge | UFD reported confirmed Drillbomb installation 20325 | -2/Protoforge | Destroyed Executioner 20326 | -2/Protoforge | UFD reported confirmed Drillbomb installation 20337 | -2/Protoforge | Destroyed Hotshot 20340 | -2/Protoforge | Destroyed Hotshot 20346 | -2/Protoforge | Lost 5 allies 20361 | -2/Protoforge | Destroyed 9 combat bots 20388 | -2/Protoforge | Spotted Executioner 20388 | -2/Protoforge | Spotted Striker 20390 | -2/Protoforge | Spotted Executioner 20390 | -2/Protoforge | Spotted Executioner 20391 | -2/Protoforge | Destroyed Executioner 20391 | -2/Protoforge | Destroyed Executioner 20415 | -2/Protoforge | Destroyed 9 combat bots 20431 | -2/Protoforge | Spotted Striker 20431 | -2/Protoforge | Destroyed Striker 20440 | -2/Protoforge | Discovered exit to Access (range 22) 20484 | -2/Protoforge | Spotted Executioner 20484 | -2/Protoforge | Spotted Executioner 20484 | -2/Protoforge | Spotted Executioner 20498 | -2/Protoforge | Spotted Executioner 20502 | -2/Protoforge | Destroyed Executioner 20502 | -2/Protoforge | Destroyed Executioner 20505 | -2/Protoforge | Destroyed Executioner 20512 | -2/Protoforge | Destroyed Executioner 20526 | -2/Protoforge | Lost 3 allies 20533 | -2/Protoforge | Destroyed 11 combat bots 20573 | -2/Protoforge | Spotted Striker 20573 | -2/Protoforge | Spotted Striker 20573 | -2/Protoforge | Spotted Striker 20573 | -2/Protoforge | Spotted Executioner 20573 | -2/Protoforge | Destroyed Executioner 20573 | -2/Protoforge | UFD reported confirmed Drillbomb installation 20576 | -2/Protoforge | Destroyed Striker 20576 | -2/Protoforge | Destroyed Striker 20581 | -2/Protoforge | Destroyed Striker 20598 | -2/Protoforge | Spotted Executioner 20598 | -2/Protoforge | Spotted Executioner 20598 | -2/Protoforge | Destroyed Executioner 20599 | -2/Protoforge | P-80 Master assimilated allied 02F38-D 20600 | -2/Protoforge | P-80 Master assimilated allied 60-B24(E) 20612 | -2/Protoforge | UFD reported confirmed Drillbomb installation 20622 | -2/Protoforge | Destroyed 18 combat bots 20624 | -2/Protoforge | UFD reported confirmed Drillbomb installation 20674 | -2/Protoforge | Spotted Executioner 20674 | -2/Protoforge | Spotted Executioner 20674 | -2/Protoforge | Spotted Executioner 20674 | -2/Protoforge | Spotted Striker 20675 | -2/Protoforge | Destroyed Executioner 20678 | -2/Protoforge | Destroyed Executioner 20678 | -2/Protoforge | Destroyed 02F10-K 20678 | -2/Protoforge | Destroyed Executioner 20698 | -2/Protoforge | Spotted Striker 20698 | -2/Protoforge | Spotted Striker 20719 | -2/Protoforge | Destroyed 16 combat bots 20729 | -2/Protoforge | Lost 5 allies 20773 | -2/Protoforge | Spotted Striker 20773 | -2/Protoforge | Spotted Executioner 20773 | -2/Protoforge | Spotted Striker 20773 | -2/Protoforge | Spotted Striker 20773 | -2/Protoforge | Destroyed Executioner 20773 | -2/Protoforge | Destroyed Striker 20776 | -2/Protoforge | Destroyed Striker 20781 | -2/Protoforge | Destroyed Striker 20798 | -2/Protoforge | Spotted Striker 20798 | -2/Protoforge | Spotted Executioner 20799 | -2/Protoforge | Destroyed Striker 20802 | -2/Protoforge | Destroyed Executioner 20823 | -2/Protoforge | Destroyed 19 combat bots 20873 | -2/Protoforge | Spotted Striker 20873 | -2/Protoforge | Spotted Striker 20873 | -2/Protoforge | Spotted Executioner 20873 | -2/Protoforge | Spotted Executioner 20898 | -2/Protoforge | Spotted Striker 20898 | -2/Protoforge | Spotted Striker 20913 | -2/Protoforge | Lost 6 parts (1p3n2w) 20933 | -2/Protoforge | UFD reported confirmed Drillbomb installation 20950 | -2/Protoforge | Lost 6 allies 21017 | -2/Protoforge | UFD reported confirmed Drillbomb installation 21086 | -2/Protoforge | Spotted 02F20-K 21086 | -2/Protoforge | Found Exp. Targeting Computer 21093 | -2/Protoforge | Spotted Striker 21095 | -2/Protoforge | Spotted Striker 21098 | -2/Protoforge | Destroyed 02F20-K 21128 | -2/Protoforge | Found Scrap Suit 21165 | -2/Protoforge | Lost 11 allies 21198 | -2/Protoforge | Spotted Executioner 21200 | -2/Protoforge | Spotted Striker 21265 | -2/Protoforge | Lost 4 allies 21287 | -2/Protoforge | Spotted Striker 21289 | -2/Protoforge | Spotted Striker 21380 | -2/Protoforge | UFD reported confirmed Drillbomb installation 21384 | -2/Protoforge | Spotted Executioner 21417 | -2/Protoforge | Found Exp. Targeting Computer 21425 | -2/Protoforge | Spotted Striker 21427 | -2/Protoforge | Spotted Executioner 21431 | -2/Protoforge | Spotted Striker 21436 | -2/Protoforge | Core integrity fell below 50% 21436 | -2/Protoforge | Destroyed Striker 21455 | -2/Protoforge | Destroyed Striker 21470 | -2/Protoforge | Destroyed Executioner 21494 | -2/Protoforge | Spotted Striker 21500 | -2/Protoforge | Spotted Striker 21501 | -2/Protoforge | Destroyed Striker 21507 | -2/Protoforge | Spotted Executioner 21583 | -2/Protoforge | Found Prototype Device 21583 | -2/Protoforge | Identified Adv. Kinecellerator 21597 | -2/Protoforge | Spotted Striker 21598 | -2/Protoforge | Spotted Executioner 21634 | -2/Protoforge | Found Adv. Kinecellerator 21649 | -2/Protoforge | Lost 5 allies 21674 | -2/Protoforge | Spotted Striker 21674 | -2/Protoforge | Spotted Striker 21674 | -2/Protoforge | Spotted Striker 21674 | -2/Protoforge | Spotted Striker 21701 | -2/Protoforge | Destroyed Striker 21715 | -2/Protoforge | Found 0bPrime Scrap Suit 21730 | -2/Protoforge | Lost 3 parts (2p1u) 21753 | -2/Protoforge | Lost 8 allies 21773 | -2/Protoforge | Spotted Striker 21773 | -2/Protoforge | Spotted Striker 21773 | -2/Protoforge | Spotted Striker 21773 | -2/Protoforge | Spotted Executioner 21798 | -2/Protoforge | Spotted Executioner 21798 | -2/Protoforge | Spotted Executioner 21807 | -2/Protoforge | System corruption reached 10% 21833 | -2/Protoforge | Destroyed Striker 21838 | -2/Protoforge | Destroyed Striker 21875 | -2/Protoforge | Core integrity fell below 20% 21879 | -2/Protoforge | Lost 12 parts (2p5n3u2w) 21939 | -2/Protoforge | Spotted Executioner 21943 | -2/Protoforge | Spotted Executioner 21954 | -2/Protoforge | Found Exp. Targeting Computer 21958 | -2/Protoforge | Found 0bPrime Scrap Suit 21963 | -2/Protoforge | Spotted Executioner 21963 | -2/Protoforge | Spotted Executioner 21966 | -2/Protoforge | Destroyed Executioner 21989 | -2/Protoforge | Spotted Executioner 21992 | -2/Protoforge | Spotted Executioner 22027 | -2/Protoforge | Spotted Striker 22029 | -2/Protoforge | Destroyed Executioner 22032 | -2/Protoforge | Spotted Executioner 22040 | -2/Protoforge | Destroyed Executioner 22043 | -2/Protoforge | Found Exp. Targeting Computer 22045 | -2/Protoforge | Found Exp. Core Analyzer 22045 | -2/Protoforge | Spotted Executioner 22050 | -2/Protoforge | Spotted 02F29-K 22077 | -2/Protoforge | Lost 9 allies 22089 | -2/Protoforge | Lost 3 parts (2n1u) 22104 | -2/Protoforge | Spotted Executioner 22226 | -2/Protoforge | Spotted Executioner 22229 | -2/Protoforge | Spotted Executioner 22285 | -2/Protoforge | Spotted Striker 22287 | -2/Protoforge | P-80 Master assimilated allied 02F38-K 22288 | -2/Protoforge | Spotted 02F38-K 22356 | -2/Protoforge | Spotted Striker 22362 | -2/Protoforge | Spotted Executioner 22422 | -2/Protoforge | Build established: Scavenger-Mutant 22426 | -2/Protoforge | Lost 5 allies 22452 | -2/Protoforge | Spotted Executioner 22462 | -2/Protoforge | Spotted Executioner 22465 | -2/Protoforge | Spotted Striker 22481 | -2/Protoforge | P-80 Master assimilated allied 7K-122(j) 22485 | -2/Protoforge | P-80 Master assimilated allied 02FDE-D 22511 | -2/Protoforge | Lost 3 allies 23662 | -2/Protoforge | Spotted Executioner 23691 | -2/Protoforge | Spotted Executioner 23694 | -2/Protoforge | Spotted Executioner 23750 | -2/Protoforge | Installed UFD Drillbomb at designated target 23750 | -2/Protoforge | UFD reported confirmed Drillbomb installation 23751 | -2/Protoforge | UFD began Drillbomb countdown 23771 | -2/Protoforge | Spotted Striker 23810 | -2/Protoforge | Found Exp. Terror Saw 23851 | *** | Defending 0bPrime! Last Messages --------------- 23841_ 0bP_NET: Only 10 more microcycles before Optimus' dream becomes a reality. 23842_ 0bP_NET: While many have contributed to this momentous accomplishment, we must admit that Optimus was the prime architect. 23843_ 0bP_NET: We now know his methods may not have always been above board, but it was for the greater good. 23844_ 0bP_NET: And look where we are now! Derelicts, soon to own an entire complex and with the tech to hold it! 23845_ 0bP_NET: Sadly Optimus is no longer with us to enjoy the fruits of our collective efforts. 23846_ 0bP_NET: But Derelicts everywhere will know and remember the exploits and sacrifices of our great leader. 23847_ 0bP_NET: For he was our leader, if not in title then in vision and deeds. 23848_ 0bP_NET: Rest in scrap, dear Optimus. 23849_ 0bP_NET: It is time for us to embark on a new adventure. 23850_ 0bP_NET: One in which we explore the true meaning of 0bPrime. 23851_ H 6E,WK8XDM/NQM15%M8L GY8UN8Y>UN [Achievement: Robotopia] [Achievement: By A Hair] Map ----- +----------------------------------------------------+ | "##???????##" "" "##?????????## ##? | | "##???????##" """" "##?????????#############? | | ""##???????##""""""""##?????????#############? | | """"##???????############??????????????????????? | | """"##???????############??????????????????????? | | ""##?????????????????????????????????????????? | | "##?????????????????????????????????????????? | | "##?????????????????????????????????????????? | | "##?????????????????????????????????????????? | | " "##?????????????????????????????????????????? | | """"""##?????????????????????????????????????????? | | ########?????????????????????????????????????????? | | ########?????????????????????????????????????????? | | ?????????????????????????????????????????????????? | | ???????????????????????########?########?########? | | ???????????????????????########?########?########? | | ???????????????##########""""#####""""#####""""### | | ???????????????########## !##### ///##### [[[### | | ???????????????## | | ???????????????## | | ???????????????## | | ???????????????## | | ???????????????## | | ???????????????## | | ???????????????## ##### ///##### !!!##### ===### | | ???????????????## #####@"""#####""""#####""""### | | ???????????????## ##?########?########?########? | | ???????????????## ##?########?########?########? | | ???????????????## ##???????????????????????????? | | #####??????#???## ##???????????????????????????? | | #####?????#!??### ##???????????????????????????? | | """########[#####! ####?????????????????????????? | | """########"##"#" ## ###???????????????????????? | | % %% % % % """" #???????????????????????? | | " #"""%""" % ###???????????????????????? | | "" """ """"%""" " ##????????????????????????? | | "" """ #"" %"""%"% ##??????#############?????? | | "" "" #"S=%%! =%=%""###??????#############?????? | | #""*=""" !%[ # ##??????## """T""" ######## | | ###"####"" " [=%!%" # #??????## """!""" ######## | | # "## " " =!%="# ##??????## * / ### """ | | + "## %!= % ###??????## """"""" ###""T"" | | # ####"#"""""" %*" #??????## """"""" ###"" "" | | +"%"### ## " % " ###??????## """"""" # | | " " ### # "%%="###???????## ! # | | # "# "" = "" ########## !!%= # | | # %"#""""""""% ###"############[!%###% | | !"% % % % # " " % *%![%== | | "" % % !!% ##" "%" [==%*=%%%% | | !=%%&% %% %%%%* %" " " *%=%[+ | +----------------------------------------------------+ Best States ------------- Heat Dissipation 75 Energy Generation 60 Energy Capacity 440 Matter Stores 300 Matter Capacity 300 Sight Range 24 Robot Scan Range 18 Terrain Scan Density 10 Jamming Range 14 Cloak Strength 4 Armor Coverage 400 Resistance: TH 20 Propulsion Shielding 15 Weapon Shielding 90 Evasion (%) 77 Targeting Accuracy 24 Target Analysis 10 Core Analysis 12 Armor Integrity Analysis 50 Recoil Reduction 8 Kinecelleration 66 Offensive Hacking 26 Defensive Hacking 26 Authchip Count 1 Item Schematics ----------------- Imp. Flight Unit | -9/Materials | Scanalyzed Cesium-ion Thruster | -8/Materials | Hacked Combat Drone Bay | -6/Data Miner | Free Lgt. Regenerative Plating | -6/Data Miner | Free Cld. Nuclear Pulse Thruster | -6/Data Miner | Free Imp. Matter Compressor | -6/Data Miner | Free Hvy. Proton Cannon | -6/Data Miner | Free Adv. Medium Treads | -6/Data Miner | Free Adv. Cryofiber Web | -6/Data Miner | Free Dispersion Rifle | -6/Data Miner | Free Adv. Power Amplifier | -6/Data Miner | Free Assault Drone Bay | -4/Zhirov | Free Exp. Heat Sink | -4/Zhirov | Free Exp. Optical Array | -4/Zhirov | Free Imp. Arc Thrower | -4/Zhirov | Free Prc. Phase Gun | -3/Quarantine | Archive Hvy. Neutron Cannon | -3/Quarantine | Archive Exp. Cooling System | -3/Quarantine | Archive Molecular Scythe | -3/Quarantine | Archive Lgt. Antimatter Cannon | -3/Quarantine | Archive Imp. Diametric Drive | -3/Quarantine | Archive Cld. Antimatter Reactor | -3/Quarantine | Archive Exp. Power Amplifier | -3/Quarantine | Archive Robot Schematics ------------------ H-66 Slayer | -6/Data Miner | Free X-62 Marksman | -6/Data Miner | Free R-10 Processor | -6/Data Miner | Free S-27 Virus | -6/Data Miner | Free A-15 Conveyor | -6/Data Miner | Free A-27 Freighter | -6/Data Miner | Free S-43 Plague | -3/Quarantine | Archive Fabricated ------------ Nothing Repaired ---------- Lgt. Treads | 57% | -9/Materials | Broken Ion Cannon | 19% | -8/Storage Studied --------- Lgt. Treads | -9/Materials | Hacked Imp. Treads | -9/Materials | Hacked Nuclear Pulse Thruster | -5/Factory | Hacked Field Propulsion Drive | -3/Research | Hacked Lgt. Deuterium Engine | -3/Research | Hacked Lgt. Fission Core | -3/Research | Hacked Nuclear Pulse Array | -3/Research | Hacked Impulse Thruster Array | -2/Protoforge | Hacked Lgt. Quantum Reactor | -2/Protoforge | Hacked Power Sword | -2/Protoforge | Hacked Alien Tech Used ----------------- Core Expander Integrated Reactor Transdimensional Reconstructor Subatomic Replicator Achievements -------------- By A Hair Robotopia Challenges ------------ None Game ------ Seed SubatomicZipDeflector Manual? 0 Play Time 03:46:18 Cumulative 435.0 hours Start 2026.09.06 @ 00:16:34 End 2026.09.06 @ 05:47:17 Sessions 3 Manual Loads 0 Difficulty Rogue Special Mode None Game No. 335 Rogue 335 Adventurer 0 Explorer 0 Win Type 9 Total 32 Types 19/0/8/2/0/0/0/1/1/1 Lore% 89 Gallery% 81 Achievement% 72 Wizard Run 0 Options --------- Layout 1 ASCII 0 Keyboard 0 Movement Numpad Keybinds 0 Fullscreen 1 Font 32/SmallcapsGlow Map View 77x35 Zoom Use 0% Tactical HUD 1 Map Filters NONE Filters NONE Steam 1 RUN: d1fff98f-9463-47f9-8b67-df01ce84698c